Workbook

Sheet Index
B1: AER opex model
B2: Index
B4: Model index
C6: Sheet Name | D6: Sheet Description
C7: Input | General | D7: Inputs NSP name, regulatory years for the prior and forecast regulatory control period etc.
C8: Input | Inflation | D8: Inputs inflation data.
C9: Input | Reported opex | D9: Inputs the reported operating expenditure (opex) from the prior regulatory control period.
C10: Input | Rate of change | D10: Inputs the cost escalation weights, cost escalation forecast, and inflation actuals and forecast
C11: Input | Step changes | D11: Inputs the operating expenditure (opex) data, including historical opex by category, one-off costs, step changes, demand forecasts, carbon costs, self insurance, network growth, and partial factor productivity
C12: Calc | Opex Forecast | D12: Calculates the opex forecast from RY2014 to RY2020
C13: Output | Models | D13: Outputs the opex forecast needed as a post tax revenue model input (which excludes debt raising costs).
C14: Lookup | Tables | D14: Includes the lookup tables used within this opex model.
C15: Check | List | D15: Shows checks on the calculations within the model
B17: End

Sheet Input|General
B1: =Index!$B$1 -> AER opex model | J1: Back to Index | L1: Key: | M1: Input | N1: External Link | O1: Internal Link | R1: Worksheet check: | S1: =IF(COUNTA($S$5:$S$13)=COUNTIF($S5:$S14,"OK"),"OK","Check") -> OK | U1: Overall Check: | V1: ='Check|List'!$S$1 -> Ok
B2: =Index!$C$7 -> Input | General
B4: Input | General inputs
C6: Inputs | D6: Source | G6: Value
C7: NSP name | D7: NSP | G7: Endeavour Energy | S7: =IF(COUNTBLANK($G7),"Check","Ok") -> Ok
C8: Prior regulatory control period, first year | D8: NSP | G8: 2014-15 | S8: Ok
C9: Forecast base year | D9: NSP | G9: 2017-18 | S9: Ok
C10: Prior regulatory control period, last year | D10: NSP | G10: 2018-19 | S10: Ok
C11: Forecast regulatory control period, first year | D11: NSP | G11: 2019-20 | S11: Ok
C12: Forecast regulatory control period, last year | D12: NSP | G12: 2023-24 | S12: Ok
B14: End

Sheet Input|Inflation
B1: =Index!$B$1 -> AER opex model | J1: Back to Index | L1: Key: | M1: Input | N1: External Link | O1: Internal Link | R1: Worksheet check: | S1: =IF(COUNTA($S$5:$S$60)=COUNTIF($S5:$S61,"OK"),"OK","Check") -> OK | U1: Overall Check: | V1: ='Check|List'!$S$1 -> Ok
B2: =Index!$C$7 -> Input | General
B4: Input | General inputs
D6: Index value, old base | E6: Index value, new base
C7: Source | D7: ABS | E7: ABS
C8: Unit | D8: index | E8: index
C9: 2007-03-31 | D9: 155.6 | S9: =IF(COUNTBLANK($D9),"Check","Ok") -> Ok
C10: 2007-06-30 | D10: 157.5 | S10: Ok
C11: 2007-09-30 | D11: 158.6 | S11: Ok
C12: 2007-12-31 | D12: 160.1 | S12: Ok
C13: 2008-03-31 | D13: 162.2 | S13: Ok
C14: 2008-06-30 | D14: 164.6 | S14: Ok
C15: 2008-09-30 | D15: 166.5 | S15: Ok
C16: 2008-12-31 | D16: 166 | S16: Ok
C17: 2009-03-31 | D17: 166.2 | S17: Ok
C18: 2009-06-30 | D18: 167 | S18: Ok
C19: 2009-09-30 | D19: 168.6 | S19: Ok
C20: 2009-12-31 | D20: 169.5 | S20: Ok
C21: 2010-03-31 | D21: 171 | E21: 95.2 | S21: =IF(COUNTBLANK($D21:$E21),"Check","Ok") -> Ok
C22: 2010-06-30 | D22: 172.1 | E22: 95.8 | S22: Ok
C23: 2010-09-30 | D23: 173.3 | E23: 96.5 | S23: Ok
C24: 2010-12-31 | D24: 174 | E24: 96.9 | S24: Ok
C25: 2011-03-31 | D25: 176.7 | E25: 98.3 | S25: Ok
C26: 2011-06-30 | D26: 178.3 | E26: 99.2 | S26: Ok
C27: 2011-09-30 | D27: 179.4 | E27: 99.8 | S27: Ok
C28: 2011-12-31 | D28: 179.4 | E28: 99.8 | S28: Ok
C29: 2012-03-31 | D29: 179.5 | E29: 99.9 | S29: =IF(COUNTBLANK($E29),"Check","Ok") -> Ok
C30: 2012-06-30 | E30: 100.4 | S30: =IF(COUNTBLANK($E30),"Check","Ok") -> Ok
C31: 2012-09-30 | E31: 101.8 | S31: =IF(COUNTBLANK($E31),"Check","Ok") -> Ok
C32: 2012-12-31 | E32: 102 | S32: =IF(COUNTBLANK($E32),"Check","Ok") -> Ok
C33: 2013-03-31 | E33: 102.4 | S33: =IF(COUNTBLANK($E33),"Check","Ok") -> Ok
C34: 2013-06-30 | E34: 102.8 | S34: Ok
C35: 2013-09-30 | E35: 104 | S35: Ok
C36: 2013-12-31 | E36: 104.8 | S36: Ok
C37: 2014-03-31 | E37: 105.4 | S37: Ok
C38: 2014-06-30 | E38: 105.9 | S38: Ok
C39: 2014-09-01 | E39: 106.4 | S39: Ok
C40: 2014-12-01 | E40: 106.6 | S40: Ok
C41: 2015-03-01 | E41: 106.8 | S41: Ok
C42: 2015-06-01 | E42: 107.5 | S42: Ok
C43: 2015-09-01 | E43: 108 | S43: Ok
C44: 2015-12-01 | E44: 108.4 | S44: Ok
C45: 2016-03-01 | E45: 108.2 | S45: Ok
C46: 2016-06-01 | E46: 108.6 | S46: Ok
C47: 2016-09-01 | E47: 109.4 | S47: Ok
C48: 2016-12-01 | E48: 110
C49: 2017-03-01 | E49: 110.5
C50: 2017-06-01 | E50: 110.7
C51: 2017-09-01 | E51: 111.4
C52: 2017-12-01 | E52: 112.1
C53: 2018-03-01 | E53: 114.1178
C54: 2018-06-01 | E54: 113.1044004
C55: 2018-09-01 | E55: 113.6099702
C56: 2018-12-01 | E56: 114.1178
C57: 2019-03-01 | E57: 114.6278997
C58: 2019-06-01 | E58: 115.1402796
C59: 2019-09-01 | E59: 115.8532565
B61: End

Sheet Input|Reported opex
C1: =Index!$B$1 -> AER opex model | J1: Back to Index | L1: Key: | M1: Input | N1: External Link | O1: Internal Link | R1: Worksheet check: | S1: =IF(COUNTA($W$32:$W$253)=COUNTIF($W$32:$W$253,"OK"),"OK","Check") -> OK | U1: Overall Check: | V1: ='Check|List'!$S$1 -> Ok
C2: =Index!$C$9 -> Input | Reported opex
D4: Source | E4: Unit | F4: Basis | J4: ='Input|General'!$G$8 -> 2014-15 | K4: =IF(OFFSET('Lookup|Tables'!$G$28:$G$43,MATCH('Input|General'!$G$8,'Lookup|Tables'!$G$28:$G$42,0)+1,0,1,1)<='Input|General'!$G$12,OFFSET('Lookup|Tables'!$G$28:$G$43,MATCH('Input|General'!$G$8,'Lookup|Tables'!$G$28:$G$42,0)+0,0,1,1),"") -> 2015-16 | L4: =IF(OFFSET('Lookup|Tables'!$G$28:$G$43,MATCH('Input|General'!$G$8,'Lookup|Tables'!$G$28:$G$42,0)+1,0,1,1)<='Input|General'!$G$12,OFFSET('Lookup|Tables'!$G$28:$G$43,MATCH('Input|General'!$G$8,'Lookup|Tables'!$G$28:$G$42,0)+1,0,1,1),"") -> 2016-17 | M4: =IF(OFFSET('Lookup|Tables'!$G$28:$G$43,MATCH('Input|General'!$G$8,'Lookup|Tables'!$G$28:$G$42,0)+2,0,1,1)<='Input|General'!$G$12,OFFSET('Lookup|Tables'!$G$28:$G$43,MATCH('Input|General'!$G$8,'Lookup|Tables'!$G$28:$G$42,0)+2,0,1,1),"") -> 2017-18 | N4: =IF(OFFSET('Lookup|Tables'!$G$28:$G$43,MATCH('Input|General'!$G$8,'Lookup|Tables'!$G$28:$G$42,0)+3,0,1,1)<='Input|General'!$G$12,OFFSET('Lookup|Tables'!$G$28:$G$43,MATCH('Input|General'!$G$8,'Lookup|Tables'!$G$28:$G$42,0)+3,0,1,1),"") -> 2018-19 | O4: =IF(OFFSET('Lookup|Tables'!$G$28:$G$43,MATCH('Input|General'!$G$8,'Lookup|Tables'!$G$28:$G$42,0)+4,0,1,1)<='Input|General'!$G$12,OFFSET('Lookup|Tables'!$G$28:$G$43,MATCH('Input|General'!$G$8,'Lookup|Tables'!$G$28:$G$42,0)+4,0,1,1),"") -> 2019-20 | P4: =IF(OFFSET('Lookup|Tables'!$G$28:$G$43,MATCH('Input|General'!$G$8,'Lookup|Tables'!$G$28:$G$42,0)+5,0,1,1)<='Input|General'!$G$12,OFFSET('Lookup|Tables'!$G$28:$G$43,MATCH('Input|General'!$G$8,'Lookup|Tables'!$G$28:$G$42,0)+5,0,1,1),"") -> 2020-21 | Q4: =IF(OFFSET('Lookup|Tables'!$G$28:$G$43,MATCH('Input|General'!$G$8,'Lookup|Tables'!$G$28:$G$42,0)+6,0,1,1)<='Input|General'!$G$12,OFFSET('Lookup|Tables'!$G$28:$G$43,MATCH('Input|General'!$G$8,'Lookup|Tables'!$G$28:$G$42,0)+6,0,1,1),"") -> 2021-22 | R4: =IF(OFFSET('Lookup|Tables'!$G$28:$G$43,MATCH('Input|General'!$G$8,'Lookup|Tables'!$G$28:$G$42,0)+7,0,1,1)<='Input|General'!$G$12,OFFSET('Lookup|Tables'!$G$28:$G$43,MATCH('Input|General'!$G$8,'Lookup|Tables'!$G$28:$G$42,0)+7,0,1,1),"") -> 2022-23 | S4: =IF(OFFSET('Lookup|Tables'!$G$28:$G$43,MATCH('Input|General'!$G$8,'Lookup|Tables'!$G$28:$G$42,0)+8,0,1,1)<='Input|General'!$G$12,OFFSET('Lookup|Tables'!$G$28:$G$43,MATCH('Input|General'!$G$8,'Lookup|Tables'!$G$28:$G$42,0)+8,0,1,1),"") -> 2023-24
B8: Input | Opex allowances
C10: Cost category | D10: Source | E10: Unit | F10: Basis | J10: =IF(RIGHT(J$4,2)<=RIGHT('Input|General'!$G$10,2),'Input|Reported opex'!J$4,"") -> 2014-15 | K10: =IF(RIGHT(K$4,2)<=RIGHT('Input|General'!$G$10,2),'Input|Reported opex'!K$4,"") -> 2015-16 | L10: =IF(RIGHT(L$4,2)<=RIGHT('Input|General'!$G$10,2),'Input|Reported opex'!L$4,"") -> 2016-17 | M10: =IF(RIGHT(M$4,2)<=RIGHT('Input|General'!$G$10,2),'Input|Reported opex'!M$4,"") -> 2017-18 | N10: =IF(RIGHT(N$4,2)<=RIGHT('Input|General'!$G$10,2),'Input|Reported opex'!N$4,"") -> 2018-19 | O10: =IF(RIGHT(O$4,2)<=RIGHT('Input|General'!$G$10,2),'Input|Reported opex'!O$4,"") ->  | P10: =IF(RIGHT(P$4,2)<=RIGHT('Input|General'!$G$10,2),'Input|Reported opex'!P$4,"") ->  | Q10: =IF(RIGHT(Q$4,2)<=RIGHT('Input|General'!$G$10,2),'Input|Reported opex'!Q$4,"") ->  | R10: =IF(RIGHT(R$4,2)<=RIGHT('Input|General'!$G$10,2),'Input|Reported opex'!R$4,"") ->  | S10: =IF(RIGHT(S$4,2)<=RIGHT('Input|General'!$G$10,2),'Input|Reported opex'!S$4,"") ->  | T10: Notes
C13: Total opex | D13: AER | E13: =$E$24 -> $millions | F13: =$F$24 -> 2013-14 | J13: 238.6611592 | K13: 242.4639179 | L13: 246.3813174 | M13: 250.5915544 | N13: 255.3839093
C14: Remove debt raising costs | D14: AER | E14: =$E$24 -> $millions | F14: =$F$24 -> 2013-14 | J14: -2.879380637 | K14: -2.995291583 | L14: -3.06314771 | M14: -3.097764057 | N14: -3.126288659
D15: AER | E15: $millions | F15: 2013-14
D16: AER | E16: $millions | F16: 2013-14
D17: AER | E17: $millions | F17: 2013-14
D18: AER | E18: $millions | F18: 2013-14
D19: AER | E19: $millions | F19: 2013-14
D20: AER | E20: $millions | F20: 2013-14
D21: AER | E21: $millions | F21: 2013-14
D22: AER | E22: $millions | F22: 2013-14
C24: Total opex | D24: Calculated | E24: $millions | F24: 2013-14 | J24: =SUM(J13:J22) -> 235.7817786 | K24: 239.4686263 | L24: 243.3181697 | M24: 247.4937904 | N24: 252.2576207 | O24: 0 | P24: 0 | Q24: 0 | R24: 0 | S24: 0
B26: Input | Reported opex
J28: Actual | K28: Actual | L28: Actual | M28: Estimate | N28: Estimate
C29: Cost category | D29: Source | E29: Unit | F29: Basis | J29: =IF(RIGHT(J4,2)<=RIGHT('Input|General'!$G$10,2),'Input|Reported opex'!J4,"") -> 2014-15 | K29: =IF(RIGHT(K4,2)<=RIGHT('Input|General'!$G$10,2),'Input|Reported opex'!K4,"") -> 2015-16 | L29: =IF(RIGHT(L4,2)<=RIGHT('Input|General'!$G$10,2),'Input|Reported opex'!L4,"") -> 2016-17 | M29: =IF(RIGHT(M4,2)<=RIGHT('Input|General'!$G$10,2),'Input|Reported opex'!M4,"") -> 2017-18 | N29: =IF(RIGHT(N4,2)<=RIGHT('Input|General'!$G$10,2),'Input|Reported opex'!N4,"") -> 2018-19 | O29: =IF(RIGHT(O4,2)<=RIGHT('Input|General'!$G$10,2),'Input|Reported opex'!O4,"") ->  | P29: =IF(RIGHT(P4,2)<=RIGHT('Input|General'!$G$10,2),'Input|Reported opex'!P4,"") ->  | Q29: =IF(RIGHT(Q4,2)<=RIGHT('Input|General'!$G$10,2),'Input|Reported opex'!Q4,"") ->  | R29: =IF(RIGHT(R4,2)<=RIGHT('Input|General'!$G$10,2),'Input|Reported opex'!R4,"") ->  | S29: =IF(RIGHT(S4,2)<=RIGHT('Input|General'!$G$10,2),'Input|Reported opex'!S4,"") ->  | T29: Notes
C32: Total opex | D32: RIN | E32: =$E$43 -> $millions | F32: =$F$43 -> nominal | J32: 290.2963378 | K32: 311.8210738 | L32: 305.0831026 | M32: 258.8119236
C33: Remove debt raising costs | D33: RIN | E33: =$E$43 -> $millions | F33: =$F$43 -> nominal | J33: 0 | K33: 0 | L33: 0 | M33: 0 | N33: 0
C34: Remove movement in provisions | D34: RIN | E34: $millions | F34: nominal | J34: 9.28467446 | K34: 4.568233754 | L34: 5.791386779 | M34: 0 | N34: 0
C35: Remove DMIA | D35: RIN | E35: $millions | F35: nominal | J35: -0.276093 | K35: -0.005654 | L35: -0.318937 | M35: 0 | N35: 0
C36: Remove proposed one-offs | D36: RIN | E36: $millions | F36: nominal
D37: RIN | E37: $millions | F37: nominal
D38: RIN | E38: $millions | F38: nominal
D39: RIN | E39: $millions | F39: nominal
D40: RIN | E40: $millions | F40: nominal
D41: RIN | E41: $millions | F41: nominal
C43: Total opex | D43: Calculated | E43: $millions | F43: nominal | J43: =SUM(J32:J41) -> 299.3049192 | K43: =SUM(K32:K41) -> 316.3836535 | L43: =SUM(L32:L41) -> 310.5555524 | M43: 258.8119236 | N43: 0 | O43: 0 | P43: 0 | Q43: 0 | R43: 0 | S43: 0
B45: Input | CAM adjustment
C47: Cost allocation method adjustment | D47: Source | E47: Unit | F47: Basis | J47: =IF(RIGHT(J4,2)=RIGHT('Input|General'!$G$10,2),'Input|Reported opex'!J4,"") ->  | K47: =IF(RIGHT(K4,2)=RIGHT('Input|General'!$G$10,2),'Input|Reported opex'!K4,"") ->  | L47: =IF(RIGHT(L4,2)=RIGHT('Input|General'!$G$10,2),'Input|Reported opex'!L4,"") ->  | M47: =IF(RIGHT(M4,2)=RIGHT('Input|General'!$G$10,2),'Input|Reported opex'!M4,"") ->  | N47: =IF(RIGHT(N$4,2)=RIGHT('Input|General'!$G$10,2),N$4,"") -> 2018-19
C48: =C47 -> Cost allocation method adjustment | D48: External | E48: =$E$43 -> $millions | F48: =$F$43 -> nominal
B50: Input | Service classification adjustment
C52: Service classification adjustment | D52: Source | E52: Unit | F52: Basis | J52: =IF(RIGHT(J9,2)=RIGHT('Input|General'!$G$10,2),'Input|Reported opex'!J9,"") ->  | K52: =IF(RIGHT(K9,2)=RIGHT('Input|General'!$G$10,2),'Input|Reported opex'!K9,"") ->  | L52: =IF(RIGHT(L9,2)=RIGHT('Input|General'!$G$10,2),'Input|Reported opex'!L9,"") ->  | M52: =IF(RIGHT(M9,2)=RIGHT('Input|General'!$G$10,2),'Input|Reported opex'!M9,"") ->  | N52: =IF(RIGHT(N$4,2)=RIGHT('Input|General'!$G$10,2),N$4,"") -> 2018-19
C53: =C52 -> Service classification adjustment | D53: External | E53: =$E$43 -> $millions | F53: =$F$43 -> nominal
B55: Input | Efficiency adjustment
C57: Efficiency adjustment | D57: Source | E57: Unit | J57: =IF(RIGHT(J14,2)=RIGHT('Input|General'!$G$10,2),'Input|Reported opex'!J14,"") ->  | K57: =IF(RIGHT(K14,2)=RIGHT('Input|General'!$G$10,2),'Input|Reported opex'!K14,"") ->  | L57: =IF(RIGHT(L14,2)=RIGHT('Input|General'!$G$10,2),'Input|Reported opex'!L14,"") ->  | M57: =IF(RIGHT(M14,2)=RIGHT('Input|General'!$G$10,2),'Input|Reported opex'!M14,"") ->  | N57: =IF(RIGHT(N$4,2)=RIGHT('Input|General'!$G$10,2),N$4,"") -> 2018-19
C58: Efficiency adjustment | D58: External | E58: Per cent
B60: End

Sheet Input|Rate of change
B1: =Index!$B$1 -> AER opex model | K1: Back to Index | M1: Key: | N1: Input | O1: External Link | P1: Internal Link | S1: Worksheet check: | T1: =IF(COUNTIF(W5:W96,"Check")=0,"Ok","Check") -> Ok | V1: Overall Check: | W1: ='Check|List'!$S$1 -> Ok
B2: =Index!$C$10 -> Input | Rate of change
D4: Source | E4: Unit | F4: Basis | J4: =IF(OFFSET('Lookup|Tables'!$G$26:$G$43,MATCH('Input|General'!$G$8,'Lookup|Tables'!$G$26:$G$42,0)-2,0,1,1)<='Input|General'!$G$12,OFFSET('Lookup|Tables'!$G$26:$G$43,MATCH('Input|General'!$G$8,'Lookup|Tables'!$G$26:$G$42,0)-2,0,1,1),"") -> 2013-14 | K4: ='Input|General'!$G$8 -> 2014-15 | L4: =IF(OFFSET('Lookup|Tables'!$G$26:$G$43,MATCH('Input|General'!$G$8,'Lookup|Tables'!$G$26:$G$42,0),0,1,1)<='Input|General'!$G$12,OFFSET('Lookup|Tables'!$G$26:$G$43,MATCH('Input|General'!$G$8,'Lookup|Tables'!$G$26:$G$42,0),0,1,1),"") -> 2015-16 | M4: =IF(OFFSET('Lookup|Tables'!$G$26:$G$43,MATCH('Input|General'!$G$8,'Lookup|Tables'!$G$26:$G$42,0)+1,0,1,1)<='Input|General'!$G$12,OFFSET('Lookup|Tables'!$G$26:$G$43,MATCH('Input|General'!$G$8,'Lookup|Tables'!$G$26:$G$42,0)+1,0,1,1),"") -> 2016-17 | N4: =IF(OFFSET('Lookup|Tables'!$G$26:$G$43,MATCH('Input|General'!$G$8,'Lookup|Tables'!$G$26:$G$42,0)+2,0,1,1)<='Input|General'!$G$12,OFFSET('Lookup|Tables'!$G$26:$G$43,MATCH('Input|General'!$G$8,'Lookup|Tables'!$G$26:$G$42,0)+2,0,1,1),"") -> 2017-18 | O4: =IF(OFFSET('Lookup|Tables'!$G$26:$G$43,MATCH('Input|General'!$G$8,'Lookup|Tables'!$G$26:$G$42,0)+3,0,1,1)<='Input|General'!$G$12,OFFSET('Lookup|Tables'!$G$26:$G$43,MATCH('Input|General'!$G$8,'Lookup|Tables'!$G$26:$G$42,0)+3,0,1,1),"") -> 2018-19 | P4: =IF(OFFSET('Lookup|Tables'!$G$26:$G$43,MATCH('Input|General'!$G$8,'Lookup|Tables'!$G$26:$G$42,0)+4,0,1,1)<='Input|General'!$G$12,OFFSET('Lookup|Tables'!$G$26:$G$43,MATCH('Input|General'!$G$8,'Lookup|Tables'!$G$26:$G$42,0)+4,0,1,1),"") -> 2019-20 | Q4: =IF(OFFSET('Lookup|Tables'!$G$26:$G$43,MATCH('Input|General'!$G$8,'Lookup|Tables'!$G$26:$G$42,0)+5,0,1,1)<='Input|General'!$G$12,OFFSET('Lookup|Tables'!$G$26:$G$43,MATCH('Input|General'!$G$8,'Lookup|Tables'!$G$26:$G$42,0)+5,0,1,1),"") -> 2020-21 | R4: =IF(OFFSET('Lookup|Tables'!$G$26:$G$43,MATCH('Input|General'!$G$8,'Lookup|Tables'!$G$26:$G$42,0)+6,0,1,1)<='Input|General'!$G$12,OFFSET('Lookup|Tables'!$G$26:$G$43,MATCH('Input|General'!$G$8,'Lookup|Tables'!$G$26:$G$42,0)+6,0,1,1),"") -> 2021-22 | S4: =IF(OFFSET('Lookup|Tables'!$G$26:$G$43,MATCH('Input|General'!$G$8,'Lookup|Tables'!$G$26:$G$42,0)+7,0,1,1)<='Input|General'!$G$12,OFFSET('Lookup|Tables'!$G$26:$G$43,MATCH('Input|General'!$G$8,'Lookup|Tables'!$G$26:$G$42,0)+7,0,1,1),"") -> 2022-23 | T4: =IF(OFFSET('Lookup|Tables'!$G$28:$G$43,MATCH('Input|General'!$G$8,'Lookup|Tables'!$G$28:$G$42,0)+8,0,1,1)<='Input|General'!$G$12,OFFSET('Lookup|Tables'!$G$28:$G$43,MATCH('Input|General'!$G$8,'Lookup|Tables'!$G$28:$G$42,0)+8,0,1,1),"") -> 2023-24
B8: Input | Inflation
C10: Inflation | J10: =J$4 -> 2013-14 | K10: =K$4 -> 2014-15 | L10: =L$4 -> 2015-16 | M10: 2016-17 | N10: 2017-18 | O10: 2018-19 | P10: 2019-20 | Q10: 2020-21 | R10: 2021-22 | S10: 2022-23 | T10: 2023-24
C12: Inflation | D12: calculated | E12: =percent -> Per cent | J12: ='Input|Inflation'!E38/'Input|Inflation'!E34-1 -> 0.03015564202 | K12: ='Input|Inflation'!E42/'Input|Inflation'!E38-1 -> 0.01510859301 | L12: ='Input|Inflation'!E46/'Input|Inflation'!E42-1 -> 0.01023255814 | M12: ='Input|Inflation'!E50/'Input|Inflation'!E46-1 -> 0.01933701657 | N12: ='Input|Inflation'!E54/'Input|Inflation'!E50-1 -> 0.02171996709 | O12: ='Input|Inflation'!E58/'Input|Inflation'!E54-1 -> 0.018
C14: CPI indexes (real to real) | J14: =J$4 -> 2013-14 | K14: =K$4 -> 2014-15 | L14: =L4 -> 2015-16 | M14: =M4 -> 2016-17 | N14: =N4 -> 2017-18 | O14: =O4 -> 2018-19
C16: ='Lookup|Tables'!C31 -> 2012-13 | D16: calculated | E16: index | J16: =(1+J$12) -> 1.030155642 | K16: =J16*(1+K$12) -> 1.045719844 | L16: 1.056420233 | M16: 1.076848249 | N16: 1.100237358 | O16: 1.12004163
C17: ='Lookup|Tables'!C32 -> 2013-14 | D17: calculated | E17: index | J17: 1 | K17: 1.015108593 | L17: 1.025495751 | M17: 1.045325779 | N17: 1.068030221 | O17: 1.087254765
C18: ='Lookup|Tables'!C33 -> 2014-15 | D18: calculated | E18: index | J18: =K18/(1+K$12) -> 0.9851162791 | K18: 1 | L18: =K18*(1+L$12) -> 1.010232558 | M18: =L18*(1+M$12) -> 1.029767442 | N18: =M18*(1+N$12) -> 1.052133957 | O18: =N18*(1+O$12) -> 1.071072368
C19: ='Lookup|Tables'!C34 -> 2015-16 | D19: calculated | E19: index | J19: =K19/(1+K$12) -> 0.9751381215 | K19: =L19/(1+L$12) -> 0.9898710866 | L19: 1 | M19: =L19*(1+M$12) -> 1.019337017 | N19: =M19*(1+N$12) -> 1.041476983 | O19: =N19*(1+O$12) -> 1.060223569
C20: ='Lookup|Tables'!C35 -> 2016-17 | D20: calculated | E20: index | J20: =K20/(1+K$12) -> 0.9566395664 | K20: 0.9710930443 | L20: 0.9810298103 | M20: 1 | N20: =M20*(1+N$12) -> 1.021719967 | O20: =N20*(1+O$12) -> 1.040110926
C21: ='Lookup|Tables'!C36 -> 2017-18 | D21: calculated | E21: index | J21: 0.936303094 | K21: 0.9504493164 | L21: 0.9601748443 | M21: 0.9787417612 | N21: 1 | O21: =N21*(1+O$12) -> 1.018
C22: ='Lookup|Tables'!C37 -> 2018-19 | D22: calculated | E22: index | J22: 0.9197476366 | K22: 0.9336437293 | L22: 0.943197293 | M22: 0.9614359147 | N22: 0.9823182711 | O22: 1
C24: CPI indexes (nominal to real) | J24: =J10 -> 2013-14 | K24: 2014-15 | L24: 2015-16 | M24: 2016-17 | N24: 2017-18 | O24: 2018-19
C26: =C16 -> 2012-13 | D26: calculated | E26: index | J26: =1/J16*(1+J$12)^0.5 -> 0.9852548407 | K26: 0.9634760034 | L26: 0.9514237096 | M26: 0.9375714876 | N26: 0.9187123477 | O26: 0.900823535
C27: 2013-14 | D27: calculated | E27: index | J27: 1.014965833 | K27: 0.9925302409 | L27: 0.9801145024 | M27: 0.9658445578 | N27: 0.9464167084 | O27: 0.927988447
C28: 2014-15 | D28: calculated | E28: index | J28: 1.030300539 | K28: 1.007525976 | L28: 0.9949226536 | M28: 0.9804371101 | N28: 0.9607157332 | O28: 0.9420090468
C29: 2015-16 | D29: calculated | E29: index | J29: 1.040843149 | K29: 1.017835544 | L29: 1.005103257 | M29: 0.9904694898 | N29: 0.9705463128 | O29: 0.9516482091
C30: 2016-17 | D30: calculated | E30: index | J30: 1.06096995 | K30: 1.037517447 | L30: 1.024538956 | M30: 1.009622215 | N30: 0.989313783 | O30: 0.9700502463
C31: 2017-18 | D31: calculated | E31: index | J31: 1.084014182 | K31: 1.060052292 | L31: 1.046791908 | M31: 1.031551176 | N31: 1.010801646 | O31: 0.9911197057
C32: 2018-19 | D32: calculated | E32: index | J32: 1.103526438 | K32: 1.079133233 | L32: 1.065634163 | M32: 1.050119097 | N32: 1.028996075 | O32: 1.00895986
B34: Input | Forecast price change
C36: Forecast price change | D36: Source | E36: Unit | K36: =IF(RIGHT(K$4,2)>=RIGHT('Input|General'!$G$11,2),IF(RIGHT(K$4,2)<='Input|General'!$G$12,'Input|Reported opex'!J$4,""),"") ->  | L36: =IF(RIGHT(L$4,2)>=RIGHT('Input|General'!$G$11,2),IF(RIGHT(L$4,2)<='Input|General'!$G$12,'Input|Reported opex'!K$4,""),"") ->  | M36: =IF(RIGHT(M$4,2)>=RIGHT('Input|General'!$G$11,2),IF(RIGHT(M$4,2)<='Input|General'!$G$12,'Input|Reported opex'!L$4,""),"") ->  | N36: =IF(RIGHT(N$4,2)>=RIGHT('Input|General'!$G$11,2),IF(RIGHT(N$4,2)<='Input|General'!$G$12,'Input|Reported opex'!M$4,""),"") ->  | O36: =IF(RIGHT(O$4,2)>=RIGHT('Input|General'!$G$11,2),IF(RIGHT(O$4,2)<='Input|General'!$G$12,'Input|Reported opex'!N$4,""),"") ->  | P36: =IF(RIGHT(P$4,2)>=RIGHT('Input|General'!$G$11,2),IF(RIGHT(P$4,2)<='Input|General'!$G$12,'Input|Reported opex'!O$4,""),"") -> 2019-20 | Q36: =Q10 -> 2020-21 | R36: =R10 -> 2021-22 | S36: =S10 -> 2022-23 | T36: =T10 -> 2023-24
C38: WPI | D38: external | E38: =percent -> Per cent | P38: 0.01549077072 | Q38: 0.02038154247 | R38: 0.0240726537 | S38: 0.0239875434 | T38: 0.02003326255
D39: external | E39: Per cent
D40: external | E40: Per cent
D41: external | E41: Per cent
D42: external | E42: Per cent
D43: external | E43: Per cent
D44: external | E44: Per cent
C45: CPI | D45: external | E45: Per cent | P45: 0 | Q45: 0 | R45: 0 | S45: 0 | T45: 0
C47: Weights | D47: Source | E47: Unit | K47: =IF(RIGHT(K$4,2)>=RIGHT('Input|General'!$G$11,2),IF(RIGHT(K$4,2)<='Input|General'!$G$12,'Input|Reported opex'!J$4,""),"") ->  | L47: =IF(RIGHT(L$4,2)>=RIGHT('Input|General'!$G$11,2),IF(RIGHT(L$4,2)<='Input|General'!$G$12,'Input|Reported opex'!K$4,""),"") ->  | M47: =IF(RIGHT(M$4,2)>=RIGHT('Input|General'!$G$11,2),IF(RIGHT(M$4,2)<='Input|General'!$G$12,'Input|Reported opex'!L$4,""),"") ->  | N47: =IF(RIGHT(N$4,2)>=RIGHT('Input|General'!$G$11,2),IF(RIGHT(N$4,2)<='Input|General'!$G$12,'Input|Reported opex'!M$4,""),"") ->  | O47: =IF(RIGHT(O$4,2)>=RIGHT('Input|General'!$G$11,2),IF(RIGHT(O$4,2)<='Input|General'!$G$12,'Input|Reported opex'!N$4,""),"") ->  | P47: =IF(RIGHT(P$4,2)>=RIGHT('Input|General'!$G$11,2),IF(RIGHT(P$4,2)<='Input|General'!$G$12,'Input|Reported opex'!O$4,""),"") -> 2019-20 | Q47: =Q10 -> 2020-21 | R47: =R10 -> 2021-22 | S47: =S10 -> 2022-23 | T47: =T10 -> 2023-24
C49: =C38 -> WPI | D49: external | E49: =percent -> Per cent | P49: 0.648 | Q49: 0.648 | R49: 0.648 | S49: 0.648 | T49: 0.648
C50: =C39 -> 0 | D50: external | E50: Per cent
C51: 0 | D51: external | E51: Per cent
C52: 0 | D52: external | E52: Per cent
C53: 0 | D53: external | E53: Per cent
C54: 0 | D54: external | E54: Per cent
C55: 0 | D55: external | E55: Per cent
C56: CPI | D56: external | E56: Per cent | P56: =1-P49 -> 0.352 | Q56: =1-Q49 -> 0.352 | R56: 0.352 | S56: 0.352 | T56: 0.352
C58: Check | D58: calculated | E58: Ok/Check | F58: n/a | P58: =IF(SUM(P49:P56)=1,"Ok","Check") -> Ok | Q58: =IF(SUM(Q49:Q56)=1,"Ok","Check") -> Ok | R58: =IF(SUM(R49:R56)=1,"Ok","Check") -> Ok | S58: =IF(SUM(S49:S56)=1,"Ok","Check") -> Ok | T58: =IF(SUM(T49:T56)=1,"Ok","Check") -> Ok | W58: =IF(COUNTIF(K58:T58,"Check")=0,"Ok","Check") -> Ok
B60: Input | Forecast output growth
C62: Output measure | D62: Source | E62: Unit | F62: Basis | K62: =IF(RIGHT(K$4,2)>=RIGHT('Input|General'!$G$11,2),IF(RIGHT(K$4,2)<='Input|General'!$G$12,'Input|Reported opex'!J$4,""),"") ->  | L62: =IF(RIGHT(L$4,2)>=RIGHT('Input|General'!$G$11,2),IF(RIGHT(L$4,2)<='Input|General'!$G$12,'Input|Reported opex'!K$4,""),"") ->  | M62: =IF(RIGHT(M$4,2)>=RIGHT('Input|General'!$G$11,2),IF(RIGHT(M$4,2)<='Input|General'!$G$12,'Input|Reported opex'!L$4,""),"") ->  | N62: =IF(RIGHT(N$4,2)>=RIGHT('Input|General'!$G$11,2),IF(RIGHT(N$4,2)<='Input|General'!$G$12,'Input|Reported opex'!M$4,""),"") ->  | O62: =IF(RIGHT(O$4,2)>=RIGHT('Input|General'!$G$10,2),IF(RIGHT(O$4,2)<='Input|General'!$G$12,'Input|Reported opex'!N$4,""),"") -> 2018-19 | P62: =IF(RIGHT(P$4,2)>=RIGHT('Input|General'!$G$10,2),IF(RIGHT(P$4,2)<='Input|General'!$G$12,'Input|Reported opex'!O$4,""),"") -> 2019-20 | Q62: =Q4 -> 2020-21 | R62: =R4 -> 2021-22 | S62: =S4 -> 2022-23 | T62: =T4 -> 2023-24
C64: Customer numbers | D64: external | E64: number | F64: n/a | O64: 1020707.612 | P64: 1043718.046 | Q64: 1064094.656 | R64: 1084269.282 | S64: 1104565.075 | T64: 1125865.46
C65: Circuit Length | D65: external | E65: number | F65: n/a | O65: 37622.42811 | P65: 38251.81685 | Q65: 38881.20559 | R65: 39510.59432 | S65: 40139.98306 | T65: 40769.37179
C66: Ratcheted Maximum Demand | D66: external | E66: number | F66: n/a | O66: 4344 | P66: 4344 | Q66: 4344 | R66: 4436 | S66: 4517 | T66: 4595
D67: external | E67: number | F67: n/a
D68: external | E68: number | F68: n/a
D69: external | E69: number | F69: n/a
C71: Growth rate | D71: Source | E71: Unit | F71: Basis | O71: =IF(RIGHT(O$4,2)>=RIGHT('Input|General'!$G$11,2),IF(RIGHT(O$4,2)<='Input|General'!$G$12,'Input|Reported opex'!N$4,""),"") ->  | P71: =IF(RIGHT(P$4,2)>=RIGHT('Input|General'!$G$11,2),IF(RIGHT(P$4,2)<='Input|General'!$G$12,'Input|Reported opex'!O$4,""),"") -> 2019-20 | Q71: =Q4 -> 2020-21 | R71: =R4 -> 2021-22 | S71: =S4 -> 2022-23 | T71: =T4 -> 2023-24 | U71: =IF(RIGHT(U$4,2)>=RIGHT('Input|General'!$G$11,2),IF(RIGHT(U$4,2)<='Input|General'!$G$12,'Input|Reported opex'!T$4,""),"") -> 
C73: =C64 -> Customer numbers | D73: calculated | E73: number | F73: n/a | P73: =IF(ISBLANK(P64),"",LN(P64)-LN(O64)) -> 0.02229325825 | Q73: =IF(ISBLANK(Q64),"",LN(Q64)-LN(P64)) -> 0.01933496764 | R73: =IF(ISBLANK(R64),"",LN(R64)-LN(Q64)) -> 0.0187819373 | S73: =IF(ISBLANK(S64),"",LN(S64)-LN(R64)) -> 0.01854537329 | T73: =IF(ISBLANK(T64),"",LN(T64)-LN(S64)) -> 0.01910037739
C74: Circuit Length | D74: calculated | E74: number | F74: n/a | P74: =IF(ISBLANK(P65),"",LN(P65)-LN(O65)) -> 0.01659069354 | Q74: =IF(ISBLANK(Q65),"",LN(Q65)-LN(P65)) -> 0.01631992849 | R74: 0.01605785965 | S74: =IF(ISBLANK(S65),"",LN(S65)-LN(R65)) -> 0.01580407467 | T74: 0.01555818688
C75: Ratcheted Maximum Demand | D75: calculated | E75: number | F75: n/a | P75: =IF(ISBLANK(P66),"",LN(P66)-LN(O66)) -> 0 | Q75: =IF(ISBLANK(Q66),"",LN(Q66)-LN(P66)) -> 0 | R75: 0.02095748686 | S75: 0.01809498718 | T75: 0.01712069914
C76: 0 | D76: calculated | E76: number | F76: n/a | P76: =IF(ISBLANK(P67),"",LN(P67)-LN(O67)) -> 
C77: 0 | D77: calculated | E77: number | F77: n/a
C78: 0 | D78: calculated | E78: number | F78: n/a
C80: Weights
C82: =C64 -> Customer numbers | D82: external | E82: number | F82: n/a | P82: 0.6760829496
C83: Circuit Length | D83: external | E83: number | F83: n/a | P83: 0.1070273345
C84: Ratcheted Maximum Demand | D84: external | E84: number | F84: n/a | P84: 0.2168897159
C85: 0 | D85: external | E85: number | F85: n/a
C86: 0 | D86: external | E86: number | F86: n/a
C87: 0 | D87: external | E87: number | F87: n/a
C89: Check | D89: calculated | E89: Ok/Check | F89: n/a | P89: =IF(SUM(P82:P87)=1,"Ok","Check") -> Ok | W89: =IF(COUNTIF(K89:T89,"Check")=0,"Ok","Check") -> Ok
B91: Input | Forecast productivity
C93: Partial factor productivity | D93: Source | E93: Unit | F93: Basis | K93: =IF(RIGHT(K$4,2)>=RIGHT('Input|General'!$G$11,2),IF(RIGHT(K$4,2)<='Input|General'!$G$12,'Input|Reported opex'!J$4,""),"") ->  | L93: =IF(RIGHT(L$4,2)>=RIGHT('Input|General'!$G$11,2),IF(RIGHT(L$4,2)<='Input|General'!$G$12,'Input|Reported opex'!K$4,""),"") ->  | M93: =IF(RIGHT(M$4,2)>=RIGHT('Input|General'!$G$11,2),IF(RIGHT(M$4,2)<='Input|General'!$G$12,'Input|Reported opex'!L$4,""),"") ->  | N93: =IF(RIGHT(N$4,2)>=RIGHT('Input|General'!$G$11,2),IF(RIGHT(N$4,2)<='Input|General'!$G$12,'Input|Reported opex'!M$4,""),"") ->  | O93: =IF(RIGHT(O$4,2)>=RIGHT('Input|General'!$G$11,2),IF(RIGHT(O$4,2)<='Input|General'!$G$12,'Input|Reported opex'!N$4,""),"") ->  | P93: =IF(RIGHT(P$4,2)>=RIGHT('Input|General'!$G$11,2),IF(RIGHT(P$4,2)<='Input|General'!$G$12,'Input|Reported opex'!O$4,""),"") -> 2019-20 | Q93: =Q4 -> 2020-21 | R93: =R4 -> 2021-22 | S93: =S4 -> 2022-23 | T93: =T4 -> 2023-24
C95: Partial factor productivity | D95: external | E95: =percent -> Per cent | F95: n/a
B97: End

Sheet Input|Step changes
B1: =Index!$B$1 -> AER opex model | J1: Back to Index | L1: Key: | M1: Input | N1: External Link | O1: Internal Link | R1: Worksheet check: | S1: =IF(COUNTA($W$8:$W$224)=COUNTIF($W$8:$W$224,"OK"),"OK","Check") -> OK | U1: Overall Check: | V1: ='Check|List'!$S$1 -> Ok
B2: =Index!$C$11 -> Input | Step changes
D4: Source | E4: Unit | F4: Basis | J4: ='Input|General'!$G$8 -> 2014-15 | K4: =IF(OFFSET('Lookup|Tables'!$G$28:$G$43,MATCH('Input|General'!$G$8,'Lookup|Tables'!$G$28:$G$42,0)+1,0,1,1)<='Input|General'!$G$12,OFFSET('Lookup|Tables'!$G$28:$G$43,1,0,1,1),"") -> 2010-11 | L4: =IF(OFFSET('Lookup|Tables'!$G$28:$G$43,MATCH('Input|General'!$G$8,'Lookup|Tables'!$G$28:$G$42,0)+1,0,1,1)<='Input|General'!$G$12,OFFSET('Lookup|Tables'!$G$28:$G$43,MATCH('Input|General'!$G$8,'Lookup|Tables'!$G$28:$G$42,0)+1,0,1,1),"") -> 2016-17 | M4: =IF(OFFSET('Lookup|Tables'!$G$28:$G$43,MATCH('Input|General'!$G$8,'Lookup|Tables'!$G$28:$G$42,0)+2,0,1,1)<='Input|General'!$G$12,OFFSET('Lookup|Tables'!$G$28:$G$43,MATCH('Input|General'!$G$8,'Lookup|Tables'!$G$28:$G$42,0)+2,0,1,1),"") -> 2017-18 | N4: =IF(OFFSET('Lookup|Tables'!$G$28:$G$43,MATCH('Input|General'!$G$8,'Lookup|Tables'!$G$28:$G$42,0)+3,0,1,1)<='Input|General'!$G$12,OFFSET('Lookup|Tables'!$G$28:$G$43,MATCH('Input|General'!$G$8,'Lookup|Tables'!$G$28:$G$42,0)+3,0,1,1),"") -> 2018-19 | O4: =IF(OFFSET('Lookup|Tables'!$G$28:$G$43,MATCH('Input|General'!$G$8,'Lookup|Tables'!$G$28:$G$42,0)+4,0,1,1)<='Input|General'!$G$12,OFFSET('Lookup|Tables'!$G$28:$G$43,MATCH('Input|General'!$G$8,'Lookup|Tables'!$G$28:$G$42,0)+4,0,1,1),"") -> 2019-20 | P4: =IF(OFFSET('Lookup|Tables'!$G$28:$G$43,MATCH('Input|General'!$G$8,'Lookup|Tables'!$G$28:$G$42,0)+5,0,1,1)<='Input|General'!$G$12,OFFSET('Lookup|Tables'!$G$28:$G$43,MATCH('Input|General'!$G$8,'Lookup|Tables'!$G$28:$G$42,0)+5,0,1,1),"") -> 2020-21 | Q4: =IF(OFFSET('Lookup|Tables'!$G$28:$G$43,MATCH('Input|General'!$G$8,'Lookup|Tables'!$G$28:$G$42,0)+6,0,1,1)<='Input|General'!$G$12,OFFSET('Lookup|Tables'!$G$28:$G$43,MATCH('Input|General'!$G$8,'Lookup|Tables'!$G$28:$G$42,0)+6,0,1,1),"") -> 2021-22 | R4: =IF(OFFSET('Lookup|Tables'!$G$28:$G$43,MATCH('Input|General'!$G$8,'Lookup|Tables'!$G$28:$G$42,0)+7,0,1,1)<='Input|General'!$G$12,OFFSET('Lookup|Tables'!$G$28:$G$43,MATCH('Input|General'!$G$8,'Lookup|Tables'!$G$28:$G$42,0)+7,0,1,1),"") -> 2022-23 | S4: =IF(OFFSET('Lookup|Tables'!$G$28:$G$43,MATCH('Input|General'!$G$8,'Lookup|Tables'!$G$28:$G$42,0)+8,0,1,1)<='Input|General'!$G$12,OFFSET('Lookup|Tables'!$G$28:$G$43,MATCH('Input|General'!$G$8,'Lookup|Tables'!$G$28:$G$42,0)+8,0,1,1),"") -> 2023-24
B8: Input |Step changes
C10: Step change | D10: Source | E10: Unit | F10: Basis | J10: =IF(RIGHT(J$4,2)>=RIGHT('Input|General'!$G$11,2),IF(RIGHT(J$4,2)<='Input|General'!$G$12,'Input|Reported opex'!J$4,""),"") ->  | K10: =IF(RIGHT(K$4,2)>=RIGHT('Input|General'!$G$11,2),IF(RIGHT(K$4,2)<='Input|General'!$G$12,'Input|Reported opex'!K$4,""),"") ->  | L10: =IF(RIGHT(L$4,2)>=RIGHT('Input|General'!$G$11,2),IF(RIGHT(L$4,2)<='Input|General'!$G$12,'Input|Reported opex'!L$4,""),"") ->  | M10: =IF(RIGHT(M$4,2)>=RIGHT('Input|General'!$G$11,2),IF(RIGHT(M$4,2)<='Input|General'!$G$12,'Input|Reported opex'!M$4,""),"") ->  | N10: =IF(RIGHT(N$4,2)>=RIGHT('Input|General'!$G$11,2),IF(RIGHT(N$4,2)<='Input|General'!$G$12,'Input|Reported opex'!N$4,""),"") ->  | O10: =IF(RIGHT(O$4,2)>=RIGHT('Input|General'!$G$11,2),IF(RIGHT(O$4,2)<='Input|General'!$G$12,'Input|Reported opex'!O$4,""),"") -> 2019-20 | P10: =P4 -> 2020-21 | Q10: =Q4 -> 2021-22 | R10: =R4 -> 2022-23 | S10: =S4 -> 2023-24
D12: AER | E12: $millions | F12: 2018-19
D13: AER | E13: $millions | F13: 2018-19
D14: AER | E14: $millions | F14: 2018-19
D15: AER | E15: $millions | F15: 2018-19
D16: AER | E16: $millions | F16: 2018-19
D17: AER | E17: $millions | F17: 2018-19
D18: AER | E18: $millions | F18: 2018-19
D19: AER | E19: $millions | F19: 2018-19
D20: AER | E20: $millions | F20: 2018-19
D21: AER | E21: $millions | F21: 2018-19
D22: AER | E22: $millions | F22: 2018-19
D23: AER | E23: $millions | F23: 2018-19
B25: Input | Debt raising costs
C27: Debt Raising Costs | D27: Source | E27: Unit | F27: Basis | J27: =IF(RIGHT(J$4,2)>=RIGHT('Input|General'!$G$11,2),IF(RIGHT(J$4,2)<='Input|General'!$G$12,'Input|Reported opex'!J$4,""),"") ->  | K27: =IF(RIGHT(K$4,2)>=RIGHT('Input|General'!$G$11,2),IF(RIGHT(K$4,2)<='Input|General'!$G$12,'Input|Reported opex'!K$4,""),"") ->  | L27: =IF(RIGHT(L$4,2)>=RIGHT('Input|General'!$G$11,2),IF(RIGHT(L$4,2)<='Input|General'!$G$12,'Input|Reported opex'!L$4,""),"") ->  | M27: =IF(RIGHT(M$4,2)>=RIGHT('Input|General'!$G$11,2),IF(RIGHT(M$4,2)<='Input|General'!$G$12,'Input|Reported opex'!M$4,""),"") ->  | N27: =IF(RIGHT(N$4,2)>=RIGHT('Input|General'!$G$11,2),IF(RIGHT(N$4,2)<='Input|General'!$G$12,'Input|Reported opex'!N$4,""),"") ->  | O27: =IF(RIGHT(O$4,2)>=RIGHT('Input|General'!$G$11,2),IF(RIGHT(O$4,2)<='Input|General'!$G$12,'Input|Reported opex'!O$4,""),"") -> 2019-20 | P27: =P4 -> 2020-21 | Q27: =Q4 -> 2021-22 | R27: =R4 -> 2022-23 | S27: =S4 -> 2023-24
C29: Debt raising costs | D29: PTRM | E29: $millions | F29: 2018-19 | O29: 3.516513214 | P29: 3.628182575 | Q29: 3.717217654 | R29: 3.796654526 | S29: 3.865051077
B31: End

Sheet Calc|Opex forecast
B1: =Index!$B$1 -> AER opex model | J1: Back to Index | L1: Key: | M1: Input | N1: External Link | O1: Internal Link | R1: Worksheet check: | S1: n/a | U1: Overall Check: | V1: ='Check|List'!$S$1 -> Ok
B2: =Index!$C$12 -> Calc | Opex Forecast
D4: Source | E4: Unit | F4: Basis | J4: ='Input|General'!$G$8 -> 2014-15 | K4: =IF(OFFSET('Lookup|Tables'!$G$28:$G$43,MATCH('Input|General'!$G$8,'Lookup|Tables'!$G$28:$G$42,0)+1,0,1,1)<='Input|General'!$G$12,OFFSET('Lookup|Tables'!$G$28:$G$43,MATCH('Input|General'!$G$8,'Lookup|Tables'!$G$28:$G$42,0)+0,0,1,1),"") -> 2015-16 | L4: =IF(OFFSET('Lookup|Tables'!$G$28:$G$43,MATCH('Input|General'!$G$8,'Lookup|Tables'!$G$28:$G$42,0)+1,0,1,1)<='Input|General'!$G$12,OFFSET('Lookup|Tables'!$G$28:$G$43,MATCH('Input|General'!$G$8,'Lookup|Tables'!$G$28:$G$42,0)+1,0,1,1),"") -> 2016-17 | M4: =IF(OFFSET('Lookup|Tables'!$G$28:$G$43,MATCH('Input|General'!$G$8,'Lookup|Tables'!$G$28:$G$42,0)+2,0,1,1)<='Input|General'!$G$12,OFFSET('Lookup|Tables'!$G$28:$G$43,MATCH('Input|General'!$G$8,'Lookup|Tables'!$G$28:$G$42,0)+2,0,1,1),"") -> 2017-18 | N4: =IF(OFFSET('Lookup|Tables'!$G$28:$G$43,MATCH('Input|General'!$G$8,'Lookup|Tables'!$G$28:$G$42,0)+3,0,1,1)<='Input|General'!$G$12,OFFSET('Lookup|Tables'!$G$28:$G$43,MATCH('Input|General'!$G$8,'Lookup|Tables'!$G$28:$G$42,0)+3,0,1,1),"") -> 2018-19 | O4: =IF(OFFSET('Lookup|Tables'!$G$28:$G$43,MATCH('Input|General'!$G$8,'Lookup|Tables'!$G$28:$G$42,0)+4,0,1,1)<='Input|General'!$G$12,OFFSET('Lookup|Tables'!$G$28:$G$43,MATCH('Input|General'!$G$8,'Lookup|Tables'!$G$28:$G$42,0)+4,0,1,1),"") -> 2019-20 | P4: =IF(OFFSET('Lookup|Tables'!$G$28:$G$43,MATCH('Input|General'!$G$8,'Lookup|Tables'!$G$28:$G$42,0)+5,0,1,1)<='Input|General'!$G$12,OFFSET('Lookup|Tables'!$G$28:$G$43,MATCH('Input|General'!$G$8,'Lookup|Tables'!$G$28:$G$42,0)+5,0,1,1),"") -> 2020-21 | Q4: =IF(OFFSET('Lookup|Tables'!$G$28:$G$43,MATCH('Input|General'!$G$8,'Lookup|Tables'!$G$28:$G$42,0)+6,0,1,1)<='Input|General'!$G$12,OFFSET('Lookup|Tables'!$G$28:$G$43,MATCH('Input|General'!$G$8,'Lookup|Tables'!$G$28:$G$42,0)+6,0,1,1),"") -> 2021-22 | R4: =IF(OFFSET('Lookup|Tables'!$G$28:$G$43,MATCH('Input|General'!$G$8,'Lookup|Tables'!$G$28:$G$42,0)+7,0,1,1)<='Input|General'!$G$12,OFFSET('Lookup|Tables'!$G$28:$G$43,MATCH('Input|General'!$G$8,'Lookup|Tables'!$G$28:$G$42,0)+7,0,1,1),"") -> 2022-23 | S4: =IF(OFFSET('Lookup|Tables'!$G$28:$G$43,MATCH('Input|General'!$G$8,'Lookup|Tables'!$G$28:$G$42,0)+8,0,1,1)<='Input|General'!$G$12,OFFSET('Lookup|Tables'!$G$28:$G$43,MATCH('Input|General'!$G$8,'Lookup|Tables'!$G$28:$G$42,0)+8,0,1,1),"") -> 2023-24
B8: Calc | Estimated final year expenditure | E8: $millions | F8: 2018-19
D10: Source | E10: Unit | F10: Basis | J10: =J4 -> 2014-15 | K10: =K4 -> 2015-16 | L10: =L4 -> 2016-17 | M10: =IF(RIGHT(M$4,2)>=RIGHT('Input|General'!$G$9,2),IF(RIGHT(M$4,2)<=RIGHT('Input|General'!$G$10,2),M$4,""),"") -> 2017-18 | N10: =IF(RIGHT(N$4,2)>=RIGHT('Input|General'!$G$9,2),IF(RIGHT(N$4,2)<=RIGHT('Input|General'!$G$10,2),N$4,""),"") -> 2018-19 | O10: =O4 -> 2019-20 | P10: =P4 -> 2020-21 | Q10: =Q4 -> 2021-22 | R10: =R4 -> 2022-23 | S10: =S4 -> 2023-24
C12: Total reported opex | D12: Inputs|Reported opex | E12: ='Input|Reported opex'!E43 -> $millions | F12: ='Input|Reported opex'!F43 -> nominal | J12: =IF(J$10='Input|General'!$G$9,'Input|Reported opex'!J43,0) -> 0 | K12: =IF(K$10='Input|General'!$G$9,'Input|Reported opex'!K43,0) -> 0 | L12: =IF(L$10='Input|General'!$G$9,'Input|Reported opex'!L43,0) -> 0 | M12: =IF(M$10='Input|General'!$G$9,'Input|Reported opex'!M43,0) -> 258.8119236 | N12: =IF(N$10='Input|General'!$G$9,'Input|Reported opex'!N43,0) -> 0 | O12: =IF(O$10='Input|General'!$G$9,'Input|Reported opex'!O43,0) -> 0 | P12: =IF(P$10='Input|General'!$G$9,'Input|Reported opex'!P43,0) -> 0 | Q12: =IF(Q$10='Input|General'!$G$9,'Input|Reported opex'!Q43,0) -> 0 | R12: =IF(R$10='Input|General'!$G$9,'Input|Reported opex'!R43,0) -> 0 | S12: =IF(S$10='Input|General'!$G$9,'Input|Reported opex'!S43,0) -> 0
C13: Total reported opex | D13: Calculated | E13: =$E$8 -> $millions | F13: =$F$8 -> 2018-19 | J13: =J12*IF($F12="nominal",LOOKUP($F13,Nominal_to_Real,'Input|Rate of change'!K$26:K$32),INDEX('Input|Rate of change'!$C$14:$O$22,MATCH('Calc|Opex forecast'!$F12,'Input|Rate of change'!$C$14:$C$22,0),MATCH('Calc|Opex forecast'!$F13,'Input|Rate of change'!$C$14:$O$14,0)))*IF($E12="$millions",1000000,IF($E12="$000",1000,1))/IF($E13="$millions",1000000,IF($E13="$000",1000,1)) -> 0 | K13: =K12*IF($F12="nominal",LOOKUP($F13,Nominal_to_Real,'Input|Rate of change'!L$26:L$32),INDEX('Input|Rate of change'!$C$14:$O$22,MATCH('Calc|Opex forecast'!$F12,'Input|Rate of change'!$C$14:$C$22,0),MATCH('Calc|Opex forecast'!$F13,'Input|Rate of change'!$C$14:$O$14,0)))*IF($E12="$millions",1000000,IF($E12="$000",1000,1))/IF($E13="$millions",1000000,IF($E13="$000",1000,1)) -> 0 | L13: =L12*IF($F12="nominal",LOOKUP($F13,Nominal_to_Real,'Input|Rate of change'!M$26:M$32),INDEX('Input|Rate of change'!$C$14:$O$22,MATCH('Calc|Opex forecast'!$F12,'Input|Rate of change'!$C$14:$C$22,0),MATCH('Calc|Opex forecast'!$F13,'Input|Rate of change'!$C$14:$O$14,0)))*IF($E12="$millions",1000000,IF($E12="$000",1000,1))/IF($E13="$millions",1000000,IF($E13="$000",1000,1)) -> 0 | M13: =M12*IF($F12="nominal",LOOKUP($F13,Nominal_to_Real,'Input|Rate of change'!N$26:N$32),INDEX('Input|Rate of change'!$C$14:$O$22,MATCH('Calc|Opex forecast'!$F12,'Input|Rate of change'!$C$14:$C$22,0),MATCH('Calc|Opex forecast'!$F13,'Input|Rate of change'!$C$14:$O$14,0)))*IF($E12="$millions",1000000,IF($E12="$000",1000,1))/IF($E13="$millions",1000000,IF($E13="$000",1000,1)) -> 266.3164537 | N13: =N12*IF($F12="nominal",LOOKUP($F13,Nominal_to_Real,'Input|Rate of change'!O$26:O$32),INDEX('Input|Rate of change'!$C$14:$O$22,MATCH('Calc|Opex forecast'!$F12,'Input|Rate of change'!$C$14:$C$22,0),MATCH('Calc|Opex forecast'!$F13,'Input|Rate of change'!$C$14:$O$14,0)))*IF($E12="$millions",1000000,IF($E12="$000",1000,1))/IF($E13="$millions",1000000,IF($E13="$000",1000,1)) -> 0 | O13: =O12*IF($F12="nominal",LOOKUP($F13,Nominal_to_Real,'Input|Rate of change'!P$26:P$32),INDEX('Input|Rate of change'!$C$14:$O$22,MATCH('Calc|Opex forecast'!$F12,'Input|Rate of change'!$C$14:$C$22,0),MATCH('Calc|Opex forecast'!$F13,'Input|Rate of change'!$C$14:$O$14,0)))*IF($E12="$millions",1000000,IF($E12="$000",1000,1))/IF($E13="$millions",1000000,IF($E13="$000",1000,1)) -> 0 | P13: =P12*IF($F12="nominal",LOOKUP($F13,Nominal_to_Real,'Input|Rate of change'!Q$26:Q$32),INDEX('Input|Rate of change'!$C$14:$O$22,MATCH('Calc|Opex forecast'!$F12,'Input|Rate of change'!$C$14:$C$22,0),MATCH('Calc|Opex forecast'!$F13,'Input|Rate of change'!$C$14:$O$14,0)))*IF($E12="$millions",1000000,IF($E12="$000",1000,1))/IF($E13="$millions",1000000,IF($E13="$000",1000,1)) -> 0 | Q13: =Q12*IF($F12="nominal",LOOKUP($F13,Nominal_to_Real,'Input|Rate of change'!R$26:R$32),INDEX('Input|Rate of change'!$C$14:$O$22,MATCH('Calc|Opex forecast'!$F12,'Input|Rate of change'!$C$14:$C$22,0),MATCH('Calc|Opex forecast'!$F13,'Input|Rate of change'!$C$14:$O$14,0)))*IF($E12="$millions",1000000,IF($E12="$000",1000,1))/IF($E13="$millions",1000000,IF($E13="$000",1000,1)) -> 0 | R13: =R12*IF($F12="nominal",LOOKUP($F13,Nominal_to_Real,'Input|Rate of change'!S$26:S$32),INDEX('Input|Rate of change'!$C$14:$O$22,MATCH('Calc|Opex forecast'!$F12,'Input|Rate of change'!$C$14:$C$22,0),MATCH('Calc|Opex forecast'!$F13,'Input|Rate of change'!$C$14:$O$14,0)))*IF($E12="$millions",1000000,IF($E12="$000",1000,1))/IF($E13="$millions",1000000,IF($E13="$000",1000,1)) -> 0 | S13: =S12*IF($F12="nominal",LOOKUP($F13,Nominal_to_Real,'Input|Rate of change'!T$26:T$32),INDEX('Input|Rate of change'!$C$14:$O$22,MATCH('Calc|Opex forecast'!$F12,'Input|Rate of change'!$C$14:$C$22,0),MATCH('Calc|Opex forecast'!$F13,'Input|Rate of change'!$C$14:$O$14,0)))*IF($E12="$millions",1000000,IF($E12="$000",1000,1))/IF($E13="$millions",1000000,IF($E13="$000",1000,1)) -> 0
C14: Total base year opex allowance | D14: Inputs|Reported opex | E14: ='Input|Reported opex'!E24 -> $millions | F14: 2013-14 | J14: =IF(J$10='Input|General'!$G$9,'Input|Reported opex'!J24,0) -> 0 | K14: =IF(K$10='Input|General'!$G$9,'Input|Reported opex'!K24,0) -> 0 | L14: =IF(L$10='Input|General'!$G$9,'Input|Reported opex'!L24,0) -> 0 | M14: =IF(M$10='Input|General'!$G$9,'Input|Reported opex'!M24,0) -> 247.4937904 | N14: =IF(N$10='Input|General'!$G$9,'Input|Reported opex'!N24,0) -> 0 | O14: =IF(O$10='Input|General'!$G$9,'Input|Reported opex'!O24,0) -> 0 | P14: =IF(P$10='Input|General'!$G$9,'Input|Reported opex'!P24,0) -> 0 | Q14: =IF(Q$10='Input|General'!$G$9,'Input|Reported opex'!Q24,0) -> 0 | R14: =IF(R$10='Input|General'!$G$9,'Input|Reported opex'!R24,0) -> 0 | S14: =IF(S$10='Input|General'!$G$9,'Input|Reported opex'!S24,0) -> 0
C15: Total base year opex allowance | D15: Calculated | E15: =$E$8 -> $millions | F15: =$F$8 -> 2018-19 | J15: =J14*IF($F14="nominal",LOOKUP($F15,Nominal_to_Real,'Input|Rate of change'!K$26:K$32),INDEX('Input|Rate of change'!$C$14:$O$22,MATCH('Calc|Opex forecast'!$F14,'Input|Rate of change'!$C$14:$C$22,0),MATCH('Calc|Opex forecast'!$F15,'Input|Rate of change'!$C$14:$O$14,0)))*IF($E14="$millions",1000000,IF($E14="$000",1000,1))/IF($E15="$millions",1000000,IF($E15="$000",1000,1)) -> 0 | K15: =K14*IF($F14="nominal",LOOKUP($F15,Nominal_to_Real,'Input|Rate of change'!L$26:L$32),INDEX('Input|Rate of change'!$C$14:$O$22,MATCH('Calc|Opex forecast'!$F14,'Input|Rate of change'!$C$14:$C$22,0),MATCH('Calc|Opex forecast'!$F15,'Input|Rate of change'!$C$14:$O$14,0)))*IF($E14="$millions",1000000,IF($E14="$000",1000,1))/IF($E15="$millions",1000000,IF($E15="$000",1000,1)) -> 0 | L15: =L14*IF($F14="nominal",LOOKUP($F15,Nominal_to_Real,'Input|Rate of change'!M$26:M$32),INDEX('Input|Rate of change'!$C$14:$O$22,MATCH('Calc|Opex forecast'!$F14,'Input|Rate of change'!$C$14:$C$22,0),MATCH('Calc|Opex forecast'!$F15,'Input|Rate of change'!$C$14:$O$14,0)))*IF($E14="$millions",1000000,IF($E14="$000",1000,1))/IF($E15="$millions",1000000,IF($E15="$000",1000,1)) -> 0 | M15: =M14*IF($F14="nominal",LOOKUP($F15,Nominal_to_Real,'Input|Rate of change'!N$26:N$32),INDEX('Input|Rate of change'!$C$14:$O$22,MATCH('Calc|Opex forecast'!$F14,'Input|Rate of change'!$C$14:$C$22,0),MATCH('Calc|Opex forecast'!$F15,'Input|Rate of change'!$C$14:$O$14,0)))*IF($E14="$millions",1000000,IF($E14="$000",1000,1))/IF($E15="$millions",1000000,IF($E15="$000",1000,1)) -> 269.0888028 | N15: =N14*IF($F14="nominal",LOOKUP($F15,Nominal_to_Real,'Input|Rate of change'!O$26:O$32),INDEX('Input|Rate of change'!$C$14:$O$22,MATCH('Calc|Opex forecast'!$F14,'Input|Rate of change'!$C$14:$C$22,0),MATCH('Calc|Opex forecast'!$F15,'Input|Rate of change'!$C$14:$O$14,0)))*IF($E14="$millions",1000000,IF($E14="$000",1000,1))/IF($E15="$millions",1000000,IF($E15="$000",1000,1)) -> 0 | O15: =O14*IF($F14="nominal",LOOKUP($F15,Nominal_to_Real,'Input|Rate of change'!P$26:P$32),INDEX('Input|Rate of change'!$C$14:$O$22,MATCH('Calc|Opex forecast'!$F14,'Input|Rate of change'!$C$14:$C$22,0),MATCH('Calc|Opex forecast'!$F15,'Input|Rate of change'!$C$14:$O$14,0)))*IF($E14="$millions",1000000,IF($E14="$000",1000,1))/IF($E15="$millions",1000000,IF($E15="$000",1000,1)) -> 0 | P15: =P14*IF($F14="nominal",LOOKUP($F15,Nominal_to_Real,'Input|Rate of change'!Q$26:Q$32),INDEX('Input|Rate of change'!$C$14:$O$22,MATCH('Calc|Opex forecast'!$F14,'Input|Rate of change'!$C$14:$C$22,0),MATCH('Calc|Opex forecast'!$F15,'Input|Rate of change'!$C$14:$O$14,0)))*IF($E14="$millions",1000000,IF($E14="$000",1000,1))/IF($E15="$millions",1000000,IF($E15="$000",1000,1)) -> 0 | Q15: =Q14*IF($F14="nominal",LOOKUP($F15,Nominal_to_Real,'Input|Rate of change'!R$26:R$32),INDEX('Input|Rate of change'!$C$14:$O$22,MATCH('Calc|Opex forecast'!$F14,'Input|Rate of change'!$C$14:$C$22,0),MATCH('Calc|Opex forecast'!$F15,'Input|Rate of change'!$C$14:$O$14,0)))*IF($E14="$millions",1000000,IF($E14="$000",1000,1))/IF($E15="$millions",1000000,IF($E15="$000",1000,1)) -> 0 | R15: =R14*IF($F14="nominal",LOOKUP($F15,Nominal_to_Real,'Input|Rate of change'!S$26:S$32),INDEX('Input|Rate of change'!$C$14:$O$22,MATCH('Calc|Opex forecast'!$F14,'Input|Rate of change'!$C$14:$C$22,0),MATCH('Calc|Opex forecast'!$F15,'Input|Rate of change'!$C$14:$O$14,0)))*IF($E14="$millions",1000000,IF($E14="$000",1000,1))/IF($E15="$millions",1000000,IF($E15="$000",1000,1)) -> 0 | S15: =S14*IF($F14="nominal",LOOKUP($F15,Nominal_to_Real,'Input|Rate of change'!T$26:T$32),INDEX('Input|Rate of change'!$C$14:$O$22,MATCH('Calc|Opex forecast'!$F14,'Input|Rate of change'!$C$14:$C$22,0),MATCH('Calc|Opex forecast'!$F15,'Input|Rate of change'!$C$14:$O$14,0)))*IF($E14="$millions",1000000,IF($E14="$000",1000,1))/IF($E15="$millions",1000000,IF($E15="$000",1000,1)) -> 0
C16: Total final year opex allowance | D16: Inputs|Reported opex | E16: ='Input|Reported opex'!E24 -> $millions | F16: ='Input|Reported opex'!F24 -> 2013-14 | J16: =IF(J$10='Input|General'!$G$10,'Input|Reported opex'!J24,0) -> 0 | K16: =IF(K$10='Input|General'!$G$10,'Input|Reported opex'!K24,0) -> 0 | L16: =IF(L$10='Input|General'!$G$10,'Input|Reported opex'!L24,0) -> 0 | M16: =IF(M$10='Input|General'!$G$10,'Input|Reported opex'!M24,0) -> 0 | N16: =IF(N$10='Input|General'!$G$10,'Input|Reported opex'!N24,0) -> 252.2576207 | O16: =IF(O$10='Input|General'!$G$10,'Input|Reported opex'!O24,0) -> 0 | P16: =IF(P$10='Input|General'!$G$10,'Input|Reported opex'!P24,0) -> 0 | Q16: =IF(Q$10='Input|General'!$G$10,'Input|Reported opex'!Q24,0) -> 0 | R16: =IF(R$10='Input|General'!$G$10,'Input|Reported opex'!R24,0) -> 0 | S16: =IF(S$10='Input|General'!$G$10,'Input|Reported opex'!S24,0) -> 0
C17: Total final year opex allowance | D17: Calculated | E17: =$E$8 -> $millions | F17: =$F$8 -> 2018-19 | J17: =J16*IF($F16="nominal",LOOKUP($F17,Nominal_to_Real,'Input|Rate of change'!K$27:K$32),INDEX('Input|Rate of change'!$C$14:$O$22,MATCH('Calc|Opex forecast'!$F16,'Input|Rate of change'!$C$14:$C$22,0),MATCH('Calc|Opex forecast'!$F17,'Input|Rate of change'!$C$14:$O$14,0)))*IF($E16="$millions",1000000,IF($E16="$000",1000,1))/IF($E17="$millions",1000000,IF($E17="$000",1000,1)) -> 0 | K17: =K16*IF($F16="nominal",LOOKUP($F17,Nominal_to_Real,'Input|Rate of change'!L$27:L$32),INDEX('Input|Rate of change'!$C$14:$O$22,MATCH('Calc|Opex forecast'!$F16,'Input|Rate of change'!$C$14:$C$22,0),MATCH('Calc|Opex forecast'!$F17,'Input|Rate of change'!$C$14:$O$14,0)))*IF($E16="$millions",1000000,IF($E16="$000",1000,1))/IF($E17="$millions",1000000,IF($E17="$000",1000,1)) -> 0 | L17: =L16*IF($F16="nominal",LOOKUP($F17,Nominal_to_Real,'Input|Rate of change'!M$27:M$32),INDEX('Input|Rate of change'!$C$14:$O$22,MATCH('Calc|Opex forecast'!$F16,'Input|Rate of change'!$C$14:$C$22,0),MATCH('Calc|Opex forecast'!$F17,'Input|Rate of change'!$C$14:$O$14,0)))*IF($E16="$millions",1000000,IF($E16="$000",1000,1))/IF($E17="$millions",1000000,IF($E17="$000",1000,1)) -> 0 | M17: =M16*IF($F16="nominal",LOOKUP($F17,Nominal_to_Real,'Input|Rate of change'!N$27:N$32),INDEX('Input|Rate of change'!$C$14:$O$22,MATCH('Calc|Opex forecast'!$F16,'Input|Rate of change'!$C$14:$C$22,0),MATCH('Calc|Opex forecast'!$F17,'Input|Rate of change'!$C$14:$O$14,0)))*IF($E16="$millions",1000000,IF($E16="$000",1000,1))/IF($E17="$millions",1000000,IF($E17="$000",1000,1)) -> 0 | N17: =N16*IF($F16="nominal",LOOKUP($F17,Nominal_to_Real,'Input|Rate of change'!O$27:O$32),INDEX('Input|Rate of change'!$C$14:$O$22,MATCH('Calc|Opex forecast'!$F16,'Input|Rate of change'!$C$14:$C$22,0),MATCH('Calc|Opex forecast'!$F17,'Input|Rate of change'!$C$14:$O$14,0)))*IF($E16="$millions",1000000,IF($E16="$000",1000,1))/IF($E17="$millions",1000000,IF($E17="$000",1000,1)) -> 274.2683 | O17: =O16*IF($F16="nominal",LOOKUP($F17,Nominal_to_Real,'Input|Rate of change'!P$27:P$32),INDEX('Input|Rate of change'!$C$14:$O$22,MATCH('Calc|Opex forecast'!$F16,'Input|Rate of change'!$C$14:$C$22,0),MATCH('Calc|Opex forecast'!$F17,'Input|Rate of change'!$C$14:$O$14,0)))*IF($E16="$millions",1000000,IF($E16="$000",1000,1))/IF($E17="$millions",1000000,IF($E17="$000",1000,1)) -> 0 | P17: =P16*IF($F16="nominal",LOOKUP($F17,Nominal_to_Real,'Input|Rate of change'!Q$27:Q$32),INDEX('Input|Rate of change'!$C$14:$O$22,MATCH('Calc|Opex forecast'!$F16,'Input|Rate of change'!$C$14:$C$22,0),MATCH('Calc|Opex forecast'!$F17,'Input|Rate of change'!$C$14:$O$14,0)))*IF($E16="$millions",1000000,IF($E16="$000",1000,1))/IF($E17="$millions",1000000,IF($E17="$000",1000,1)) -> 0 | Q17: =Q16*IF($F16="nominal",LOOKUP($F17,Nominal_to_Real,'Input|Rate of change'!R$27:R$32),INDEX('Input|Rate of change'!$C$14:$O$22,MATCH('Calc|Opex forecast'!$F16,'Input|Rate of change'!$C$14:$C$22,0),MATCH('Calc|Opex forecast'!$F17,'Input|Rate of change'!$C$14:$O$14,0)))*IF($E16="$millions",1000000,IF($E16="$000",1000,1))/IF($E17="$millions",1000000,IF($E17="$000",1000,1)) -> 0 | R17: =R16*IF($F16="nominal",LOOKUP($F17,Nominal_to_Real,'Input|Rate of change'!S$27:S$32),INDEX('Input|Rate of change'!$C$14:$O$22,MATCH('Calc|Opex forecast'!$F16,'Input|Rate of change'!$C$14:$C$22,0),MATCH('Calc|Opex forecast'!$F17,'Input|Rate of change'!$C$14:$O$14,0)))*IF($E16="$millions",1000000,IF($E16="$000",1000,1))/IF($E17="$millions",1000000,IF($E17="$000",1000,1)) -> 0 | S17: =S16*IF($F16="nominal",LOOKUP($F17,Nominal_to_Real,'Input|Rate of change'!T$27:T$32),INDEX('Input|Rate of change'!$C$14:$O$22,MATCH('Calc|Opex forecast'!$F16,'Input|Rate of change'!$C$14:$C$22,0),MATCH('Calc|Opex forecast'!$F17,'Input|Rate of change'!$C$14:$O$14,0)))*IF($E16="$millions",1000000,IF($E16="$000",1000,1))/IF($E17="$millions",1000000,IF($E17="$000",1000,1)) -> 0
C19: Estimated final year opex | D19: Calculated | E19: =$E$8 -> $millions | F19: 2018-19 | J19: =IF(J$10='Input|General'!$G$10,SUM($J13:$S13)-SUM($J15:$S15)+SUM($J17:$S17),0) -> 0 | K19: =IF(K$10='Input|General'!$G$10,SUM($J13:$S13)-SUM($J15:$S15)+SUM($J17:$S17),0) -> 0 | L19: =IF(L$10='Input|General'!$G$10,SUM($J13:$S13)-SUM($J15:$S15)+SUM($J17:$S17),0) -> 0 | M19: =IF(M$10='Input|General'!$G$10,SUM($J13:$S13)-SUM($J15:$S15)+SUM($J17:$S17),0) -> 0 | N19: =IF(N$10='Input|General'!$G$10,SUM($J13:$S13)-SUM($J15:$S15)+SUM($J17:$S17),0) -> 271.4959509 | O19: =IF(O$10='Input|General'!$G$10,SUM($J13:$S13)-SUM($J15:$S15)+SUM($J17:$S17),0) -> 0 | P19: =IF(P$10='Input|General'!$G$10,SUM($J13:$S13)-SUM($J15:$S15)+SUM($J17:$S17),0) -> 0 | Q19: =IF(Q$10='Input|General'!$G$10,SUM($J13:$S13)-SUM($J15:$S15)+SUM($J17:$S17),0) -> 0 | R19: =IF(R$10='Input|General'!$G$10,SUM($J13:$S13)-SUM($J15:$S15)+SUM($J17:$S17),0) -> 0 | S19: =IF(S$10='Input|General'!$G$10,SUM($J13:$S13)-SUM($J15:$S15)+SUM($J17:$S17),0) -> 0
C21: CAM adjustment | D21: Inputs|Reported opex | E21: ='Input|Reported opex'!E48 -> $millions | F21: ='Input|Reported opex'!F48 -> nominal | I21: =IF(I$10='Input|General'!$G$10,'Input|Reported opex'!I48,0) -> 0 | J21: =IF(J$10='Input|General'!$G$10,'Input|Reported opex'!J48,0) -> 0 | K21: =IF(K$10='Input|General'!$G$10,'Input|Reported opex'!K48,0) -> 0 | L21: =IF(L$10='Input|General'!$G$10,'Input|Reported opex'!L48,0) -> 0 | M21: =IF(M$10='Input|General'!$G$10,'Input|Reported opex'!M48,0) -> 0 | N21: =IF(N$10='Input|General'!$G$10,'Input|Reported opex'!N48,0) -> 0 | O21: =IF(O$10='Input|General'!$G$10,'Input|Reported opex'!O48,0) -> 0 | P21: =IF(P$10='Input|General'!$G$10,'Input|Reported opex'!P48,0) -> 0 | Q21: =IF(Q$10='Input|General'!$G$10,'Input|Reported opex'!Q48,0) -> 0 | R21: =IF(R$10='Input|General'!$G$10,'Input|Reported opex'!R48,0) -> 0 | S21: =IF(S$10='Input|General'!$G$10,'Input|Reported opex'!S48,0) -> 0
C22: =C21 -> CAM adjustment | D22: Calculated | E22: =$E$8 -> $millions | F22: =$F$8 -> 2018-19 | J22: =J21*IF($F21="nominal",LOOKUP($F22,Nominal_to_Real,'Input|Rate of change'!K$26:K$32),INDEX('Input|Rate of change'!$C$14:$O$22,MATCH('Calc|Opex forecast'!$F21,'Input|Rate of change'!$C$14:$C$22,0),MATCH('Calc|Opex forecast'!$F22,'Input|Rate of change'!$C$14:$O$14,0)))*IF($E21="$millions",1000000,IF($E21="$000",1000,1))/IF($E22="$millions",1000000,IF($E22="$000",1000,1)) -> 0 | K22: =K21*IF($F21="nominal",LOOKUP($F22,Nominal_to_Real,'Input|Rate of change'!L$26:L$32),INDEX('Input|Rate of change'!$C$14:$O$22,MATCH('Calc|Opex forecast'!$F21,'Input|Rate of change'!$C$14:$C$22,0),MATCH('Calc|Opex forecast'!$F22,'Input|Rate of change'!$C$14:$O$14,0)))*IF($E21="$millions",1000000,IF($E21="$000",1000,1))/IF($E22="$millions",1000000,IF($E22="$000",1000,1)) -> 0 | L22: =L21*IF($F21="nominal",LOOKUP($F22,Nominal_to_Real,'Input|Rate of change'!M$26:M$32),INDEX('Input|Rate of change'!$C$14:$O$22,MATCH('Calc|Opex forecast'!$F21,'Input|Rate of change'!$C$14:$C$22,0),MATCH('Calc|Opex forecast'!$F22,'Input|Rate of change'!$C$14:$O$14,0)))*IF($E21="$millions",1000000,IF($E21="$000",1000,1))/IF($E22="$millions",1000000,IF($E22="$000",1000,1)) -> 0 | M22: =M21*IF($F21="nominal",LOOKUP($F22,Nominal_to_Real,'Input|Rate of change'!N$26:N$32),INDEX('Input|Rate of change'!$C$14:$O$22,MATCH('Calc|Opex forecast'!$F21,'Input|Rate of change'!$C$14:$C$22,0),MATCH('Calc|Opex forecast'!$F22,'Input|Rate of change'!$C$14:$O$14,0)))*IF($E21="$millions",1000000,IF($E21="$000",1000,1))/IF($E22="$millions",1000000,IF($E22="$000",1000,1)) -> 0 | N22: =N21*IF($F21="nominal",LOOKUP($F22,Nominal_to_Real,'Input|Rate of change'!O$26:O$32),INDEX('Input|Rate of change'!$C$14:$O$22,MATCH('Calc|Opex forecast'!$F21,'Input|Rate of change'!$C$14:$C$22,0),MATCH('Calc|Opex forecast'!$F22,'Input|Rate of change'!$C$14:$O$14,0)))*IF($E21="$millions",1000000,IF($E21="$000",1000,1))/IF($E22="$millions",1000000,IF($E22="$000",1000,1)) -> 0 | O22: =O21*IF($F21="nominal",LOOKUP($F22,Nominal_to_Real,'Input|Rate of change'!P$26:P$32),INDEX('Input|Rate of change'!$C$14:$O$22,MATCH('Calc|Opex forecast'!$F21,'Input|Rate of change'!$C$14:$C$22,0),MATCH('Calc|Opex forecast'!$F22,'Input|Rate of change'!$C$14:$O$14,0)))*IF($E21="$millions",1000000,IF($E21="$000",1000,1))/IF($E22="$millions",1000000,IF($E22="$000",1000,1)) -> 0 | P22: =P21*IF($F21="nominal",LOOKUP($F22,Nominal_to_Real,'Input|Rate of change'!Q$26:Q$32),INDEX('Input|Rate of change'!$C$14:$O$22,MATCH('Calc|Opex forecast'!$F21,'Input|Rate of change'!$C$14:$C$22,0),MATCH('Calc|Opex forecast'!$F22,'Input|Rate of change'!$C$14:$O$14,0)))*IF($E21="$millions",1000000,IF($E21="$000",1000,1))/IF($E22="$millions",1000000,IF($E22="$000",1000,1)) -> 0 | Q22: =Q21*IF($F21="nominal",LOOKUP($F22,Nominal_to_Real,'Input|Rate of change'!R$26:R$32),INDEX('Input|Rate of change'!$C$14:$O$22,MATCH('Calc|Opex forecast'!$F21,'Input|Rate of change'!$C$14:$C$22,0),MATCH('Calc|Opex forecast'!$F22,'Input|Rate of change'!$C$14:$O$14,0)))*IF($E21="$millions",1000000,IF($E21="$000",1000,1))/IF($E22="$millions",1000000,IF($E22="$000",1000,1)) -> 0 | R22: =R21*IF($F21="nominal",LOOKUP($F22,Nominal_to_Real,'Input|Rate of change'!S$26:S$32),INDEX('Input|Rate of change'!$C$14:$O$22,MATCH('Calc|Opex forecast'!$F21,'Input|Rate of change'!$C$14:$C$22,0),MATCH('Calc|Opex forecast'!$F22,'Input|Rate of change'!$C$14:$O$14,0)))*IF($E21="$millions",1000000,IF($E21="$000",1000,1))/IF($E22="$millions",1000000,IF($E22="$000",1000,1)) -> 0 | S22: =S21*IF($F21="nominal",LOOKUP($F22,Nominal_to_Real,'Input|Rate of change'!T$26:T$32),INDEX('Input|Rate of change'!$C$14:$O$22,MATCH('Calc|Opex forecast'!$F21,'Input|Rate of change'!$C$14:$C$22,0),MATCH('Calc|Opex forecast'!$F22,'Input|Rate of change'!$C$14:$O$14,0)))*IF($E21="$millions",1000000,IF($E21="$000",1000,1))/IF($E22="$millions",1000000,IF($E22="$000",1000,1)) -> 0
C24: Service classification adjustment | D24: Inputs|Reported opex | E24: ='Input|Reported opex'!E53 -> $millions | F24: ='Input|Reported opex'!F53 -> nominal | N24: ='Input|Reported opex'!N53 -> 0
C25: =C24 -> Service classification adjustment | D25: Calculated | E25: =$E$8 -> $millions | F25: =$F$8 -> 2018-19 | J25: =J24*IF($F24="nominal",LOOKUP($F25,Nominal_to_Real,'Input|Rate of change'!K$26:K$32),INDEX('Input|Rate of change'!$C$14:$O$22,MATCH('Calc|Opex forecast'!$F24,'Input|Rate of change'!$C$14:$C$22,0),MATCH('Calc|Opex forecast'!$F25,'Input|Rate of change'!$C$14:$O$14,0)))*IF($E24="$millions",1000000,IF($E24="$000",1000,1))/IF($E25="$millions",1000000,IF($E25="$000",1000,1)) -> 0 | K25: =K24*IF($F24="nominal",LOOKUP($F25,Nominal_to_Real,'Input|Rate of change'!L$26:L$32),INDEX('Input|Rate of change'!$C$14:$O$22,MATCH('Calc|Opex forecast'!$F24,'Input|Rate of change'!$C$14:$C$22,0),MATCH('Calc|Opex forecast'!$F25,'Input|Rate of change'!$C$14:$O$14,0)))*IF($E24="$millions",1000000,IF($E24="$000",1000,1))/IF($E25="$millions",1000000,IF($E25="$000",1000,1)) -> 0 | L25: =L24*IF($F24="nominal",LOOKUP($F25,Nominal_to_Real,'Input|Rate of change'!M$26:M$32),INDEX('Input|Rate of change'!$C$14:$O$22,MATCH('Calc|Opex forecast'!$F24,'Input|Rate of change'!$C$14:$C$22,0),MATCH('Calc|Opex forecast'!$F25,'Input|Rate of change'!$C$14:$O$14,0)))*IF($E24="$millions",1000000,IF($E24="$000",1000,1))/IF($E25="$millions",1000000,IF($E25="$000",1000,1)) -> 0 | M25: =M24*IF($F24="nominal",LOOKUP($F25,Nominal_to_Real,'Input|Rate of change'!N$26:N$32),INDEX('Input|Rate of change'!$C$14:$O$22,MATCH('Calc|Opex forecast'!$F24,'Input|Rate of change'!$C$14:$C$22,0),MATCH('Calc|Opex forecast'!$F25,'Input|Rate of change'!$C$14:$O$14,0)))*IF($E24="$millions",1000000,IF($E24="$000",1000,1))/IF($E25="$millions",1000000,IF($E25="$000",1000,1)) -> 0 | N25: =N24*IF($F24="nominal",LOOKUP($F25,Nominal_to_Real,'Input|Rate of change'!O$26:O$32),INDEX('Input|Rate of change'!$C$14:$O$22,MATCH('Calc|Opex forecast'!$F24,'Input|Rate of change'!$C$14:$C$22,0),MATCH('Calc|Opex forecast'!$F25,'Input|Rate of change'!$C$14:$O$14,0)))*IF($E24="$millions",1000000,IF($E24="$000",1000,1))/IF($E25="$millions",1000000,IF($E25="$000",1000,1)) -> 0 | O25: =O24*IF($F24="nominal",LOOKUP($F25,Nominal_to_Real,'Input|Rate of change'!P$26:P$32),INDEX('Input|Rate of change'!$C$14:$O$22,MATCH('Calc|Opex forecast'!$F24,'Input|Rate of change'!$C$14:$C$22,0),MATCH('Calc|Opex forecast'!$F25,'Input|Rate of change'!$C$14:$O$14,0)))*IF($E24="$millions",1000000,IF($E24="$000",1000,1))/IF($E25="$millions",1000000,IF($E25="$000",1000,1)) -> 0 | P25: =P24*IF($F24="nominal",LOOKUP($F25,Nominal_to_Real,'Input|Rate of change'!Q$26:Q$32),INDEX('Input|Rate of change'!$C$14:$O$22,MATCH('Calc|Opex forecast'!$F24,'Input|Rate of change'!$C$14:$C$22,0),MATCH('Calc|Opex forecast'!$F25,'Input|Rate of change'!$C$14:$O$14,0)))*IF($E24="$millions",1000000,IF($E24="$000",1000,1))/IF($E25="$millions",1000000,IF($E25="$000",1000,1)) -> 0 | Q25: =Q24*IF($F24="nominal",LOOKUP($F25,Nominal_to_Real,'Input|Rate of change'!R$26:R$32),INDEX('Input|Rate of change'!$C$14:$O$22,MATCH('Calc|Opex forecast'!$F24,'Input|Rate of change'!$C$14:$C$22,0),MATCH('Calc|Opex forecast'!$F25,'Input|Rate of change'!$C$14:$O$14,0)))*IF($E24="$millions",1000000,IF($E24="$000",1000,1))/IF($E25="$millions",1000000,IF($E25="$000",1000,1)) -> 0 | R25: =R24*IF($F24="nominal",LOOKUP($F25,Nominal_to_Real,'Input|Rate of change'!S$26:S$32),INDEX('Input|Rate of change'!$C$14:$O$22,MATCH('Calc|Opex forecast'!$F24,'Input|Rate of change'!$C$14:$C$22,0),MATCH('Calc|Opex forecast'!$F25,'Input|Rate of change'!$C$14:$O$14,0)))*IF($E24="$millions",1000000,IF($E24="$000",1000,1))/IF($E25="$millions",1000000,IF($E25="$000",1000,1)) -> 0 | S25: =S24*IF($F24="nominal",LOOKUP($F25,Nominal_to_Real,'Input|Rate of change'!T$26:T$32),INDEX('Input|Rate of change'!$C$14:$O$22,MATCH('Calc|Opex forecast'!$F24,'Input|Rate of change'!$C$14:$C$22,0),MATCH('Calc|Opex forecast'!$F25,'Input|Rate of change'!$C$14:$O$14,0)))*IF($E24="$millions",1000000,IF($E24="$000",1000,1))/IF($E25="$millions",1000000,IF($E25="$000",1000,1)) -> 0
C27: Efficiency adjustment | D27: calculated | E27: =$E$8 -> $millions | F27: =$F$8 -> 2018-19 | J27: =SUM(J19,J22,J25)*'Input|Reported opex'!$N$58 -> 0 | K27: =SUM(K19,K22,K25)*'Input|Reported opex'!$N$58 -> 0 | L27: =SUM(L19,L22,L25)*'Input|Reported opex'!$N$58 -> 0 | M27: =SUM(M19,M22,M25)*'Input|Reported opex'!$N$58 -> 0 | N27: =-SUM(N19,N22,N25)*'Input|Reported opex'!$N$58 -> 0 | O27: =SUM(O19,O22,O25)*'Input|Reported opex'!$N$58 -> 0 | P27: =SUM(P19,P22,P25)*'Input|Reported opex'!$N$58 -> 0 | Q27: =SUM(Q19,Q22,Q25)*'Input|Reported opex'!$N$58 -> 0 | R27: =SUM(R19,R22,R25)*'Input|Reported opex'!$N$58 -> 0 | S27: =SUM(S19,S22,S25)*'Input|Reported opex'!$N$58 -> 0
C29: Efficiency adjustment final year opex | D29: calculated | E29: =$E$8 -> $millions | F29: =$F$8 -> 2018-19 | J29: =SUM(J19,J22,J25,J27) -> 0 | K29: 0 | L29: 0 | M29: 0 | N29: =SUM(N19,N22,N25,N27) -> 271.4959509 | O29: 0 | P29: 0 | Q29: 0 | R29: 0 | S29: =SUM(S19,S22,S25,S27) -> 0
B31: Calc | Rate of change
C33: Rate of change | D33: Source | E33: Unit | F33: Basis | J33: =J4 -> 2014-15 | K33: =K4 -> 2015-16 | L33: =L4 -> 2016-17 | M33: =M4 -> 2017-18 | N33: =N4 -> 2018-19 | O33: =IF(RIGHT(O$4,2)>=RIGHT('Input|General'!$G$11,2),IF(RIGHT(O$4,2)<='Input|General'!$G$12,'Input|Reported opex'!O$4,""),"") -> 2019-20 | P33: =P4 -> 2020-21 | Q33: =Q4 -> 2021-22 | R33: =R4 -> 2022-23 | S33: =S4 -> 2023-24
C36: Forecast output change | D36: Calculated | E36: Per cent | F36: n/a | M36: =SUMPRODUCT('Input|Rate of change'!N73:N78,'Input|Rate of change'!$P$82:$P$87) -> 0 | O36: =SUMPRODUCT('Input|Rate of change'!P73:P78,'Input|Rate of change'!$P$82:$P$87) -> 0.0168477495 | P36: =SUMPRODUCT('Input|Rate of change'!Q73:Q78,'Input|Rate of change'!$P$82:$P$87) -> 0.0148187204 | Q36: =SUMPRODUCT('Input|Rate of change'!R73:R78,'Input|Rate of change'!$P$82:$P$87) -> 0.01896224086 | R36: =SUMPRODUCT('Input|Rate of change'!S73:S78,'Input|Rate of change'!$P$82:$P$87) -> 0.01815429529 | S36: =SUMPRODUCT('Input|Rate of change'!T73:T78,'Input|Rate of change'!$P$82:$P$87) -> 0.01829189433
C38: Forecast price change | D38: Calculated | E38: Per cent | F38: n/a | O38: =SUMPRODUCT('Input|Rate of change'!P38:P45,'Input|Rate of change'!P49:P56) -> 0.01003801943 | P38: =SUMPRODUCT('Input|Rate of change'!Q38:Q45,'Input|Rate of change'!Q49:Q56) -> 0.01320723952 | Q38: =SUMPRODUCT('Input|Rate of change'!R38:R45,'Input|Rate of change'!R49:R56) -> 0.0155990796 | R38: =SUMPRODUCT('Input|Rate of change'!S38:S45,'Input|Rate of change'!S49:S56) -> 0.01554392812 | S38: =SUMPRODUCT('Input|Rate of change'!T38:T45,'Input|Rate of change'!T49:T56) -> 0.01298155414
C40: Forecast productivity change | D40: Calculated | E40: Per cent | F40: n/a | J40: ='Input|Rate of change'!K95 -> 0 | K40: ='Input|Rate of change'!L95 -> 0 | L40: ='Input|Rate of change'!M95 -> 0 | M40: ='Input|Rate of change'!N95 -> 0 | N40: ='Input|Rate of change'!O95 -> 0 | O40: ='Input|Rate of change'!P95 -> 0 | P40: ='Input|Rate of change'!Q95 -> 0 | Q40: ='Input|Rate of change'!R95 -> 0 | R40: ='Input|Rate of change'!S95 -> 0 | S40: ='Input|Rate of change'!T95 -> 0
C42: Forecast rate of change | D42: Calculated | E42: Per cent | F42: n/a | M42: =(1+M36)*(1+M38)*(1-M40)-1 -> 0 | N42: 0 | O42: 0.02705488697 | P42: 0.02822167431 | Q42: 0.03485711396 | R42: 0.03398041247 | S42: 0.03151090568
B44: Calc | Step changes
C46: Step changes | D46: Source | E46: Unit | F46: Basis | J46: =J4 -> 2014-15 | K46: =K4 -> 2015-16 | L46: =L4 -> 2016-17 | M46: =M4 -> 2017-18 | N46: =N4 -> 2018-19 | O46: =IF(RIGHT(O$4,2)>=RIGHT('Input|General'!$G$11,2),IF(RIGHT(O$4,2)<='Input|General'!$G$12,'Input|Reported opex'!O$4,""),"") -> 2019-20 | P46: =P4 -> 2020-21 | Q46: =Q4 -> 2021-22 | R46: =R4 -> 2022-23 | S46: =S4 -> 2023-24
C48: Benchmark stepchange placeholder | D48: Calculated | E48: =$E$8 -> $millions | F48: =$F$8 -> 2018-19 | J48: ='Input|Step changes'!J12*IF('Input|Step changes'!$F12="nominal",LOOKUP($F48,Nominal_to_Real,'Input|Rate of change'!N$27:N$32),INDEX('Input|Rate of change'!$C$14:$O$22,MATCH('Input|Step changes'!$F12,'Input|Rate of change'!$C$14:$C$22,0),MATCH('Calc|Opex forecast'!$F48,'Input|Rate of change'!$C$14:$O$14,0)))*IF('Input|Step changes'!$E12="$millions",1000000,IF('Input|Step changes'!$E12="$000",1000,1))/IF($E48="$millions",1000000,IF($E48="$000",1000,1)) -> 0 | K48: ='Input|Step changes'!K12*IF('Input|Step changes'!$F12="nominal",LOOKUP($F48,Nominal_to_Real,'Input|Rate of change'!O$27:O$32),INDEX('Input|Rate of change'!$C$14:$O$22,MATCH('Input|Step changes'!$F12,'Input|Rate of change'!$C$14:$C$22,0),MATCH('Calc|Opex forecast'!$F48,'Input|Rate of change'!$C$14:$O$14,0)))*IF('Input|Step changes'!$E12="$millions",1000000,IF('Input|Step changes'!$E12="$000",1000,1))/IF($E48="$millions",1000000,IF($E48="$000",1000,1)) -> 0 | L48: ='Input|Step changes'!L12*IF('Input|Step changes'!$F12="nominal",LOOKUP($F48,Nominal_to_Real,'Input|Rate of change'!P$27:P$32),INDEX('Input|Rate of change'!$C$14:$O$22,MATCH('Input|Step changes'!$F12,'Input|Rate of change'!$C$14:$C$22,0),MATCH('Calc|Opex forecast'!$F48,'Input|Rate of change'!$C$14:$O$14,0)))*IF('Input|Step changes'!$E12="$millions",1000000,IF('Input|Step changes'!$E12="$000",1000,1))/IF($E48="$millions",1000000,IF($E48="$000",1000,1)) -> 0 | M48: ='Input|Step changes'!M12*IF('Input|Step changes'!$F12="nominal",LOOKUP($F48,Nominal_to_Real,'Input|Rate of change'!Q$27:Q$32),INDEX('Input|Rate of change'!$C$14:$O$22,MATCH('Input|Step changes'!$F12,'Input|Rate of change'!$C$14:$C$22,0),MATCH('Calc|Opex forecast'!$F48,'Input|Rate of change'!$C$14:$O$14,0)))*IF('Input|Step changes'!$E12="$millions",1000000,IF('Input|Step changes'!$E12="$000",1000,1))/IF($E48="$millions",1000000,IF($E48="$000",1000,1)) -> 0 | N48: ='Input|Step changes'!N12*IF('Input|Step changes'!$F12="nominal",LOOKUP($F48,Nominal_to_Real,'Input|Rate of change'!R$27:R$32),INDEX('Input|Rate of change'!$C$14:$O$22,MATCH('Input|Step changes'!$F12,'Input|Rate of change'!$C$14:$C$22,0),MATCH('Calc|Opex forecast'!$F48,'Input|Rate of change'!$C$14:$O$14,0)))*IF('Input|Step changes'!$E12="$millions",1000000,IF('Input|Step changes'!$E12="$000",1000,1))/IF($E48="$millions",1000000,IF($E48="$000",1000,1)) -> 0 | O48: ='Input|Step changes'!O12*IF('Input|Step changes'!$F12="nominal",LOOKUP($F48,Nominal_to_Real,'Input|Rate of change'!S$27:S$32),INDEX('Input|Rate of change'!$C$14:$O$22,MATCH('Input|Step changes'!$F12,'Input|Rate of change'!$C$14:$C$22,0),MATCH('Calc|Opex forecast'!$F48,'Input|Rate of change'!$C$14:$O$14,0)))*IF('Input|Step changes'!$E12="$millions",1000000,IF('Input|Step changes'!$E12="$000",1000,1))/IF($E48="$millions",1000000,IF($E48="$000",1000,1)) -> 0 | P48: ='Input|Step changes'!P12*IF('Input|Step changes'!$F12="nominal",LOOKUP($F48,Nominal_to_Real,'Input|Rate of change'!T$27:T$32),INDEX('Input|Rate of change'!$C$14:$O$22,MATCH('Input|Step changes'!$F12,'Input|Rate of change'!$C$14:$C$22,0),MATCH('Calc|Opex forecast'!$F48,'Input|Rate of change'!$C$14:$O$14,0)))*IF('Input|Step changes'!$E12="$millions",1000000,IF('Input|Step changes'!$E12="$000",1000,1))/IF($E48="$millions",1000000,IF($E48="$000",1000,1)) -> 0 | Q48: ='Input|Step changes'!Q12*IF('Input|Step changes'!$F12="nominal",LOOKUP($F48,Nominal_to_Real,'Input|Rate of change'!U$27:U$32),INDEX('Input|Rate of change'!$C$14:$O$22,MATCH('Input|Step changes'!$F12,'Input|Rate of change'!$C$14:$C$22,0),MATCH('Calc|Opex forecast'!$F48,'Input|Rate of change'!$C$14:$O$14,0)))*IF('Input|Step changes'!$E12="$millions",1000000,IF('Input|Step changes'!$E12="$000",1000,1))/IF($E48="$millions",1000000,IF($E48="$000",1000,1)) -> 0 | R48: ='Input|Step changes'!R12*IF('Input|Step changes'!$F12="nominal",LOOKUP($F48,Nominal_to_Real,'Input|Rate of change'!V$27:V$32),INDEX('Input|Rate of change'!$C$14:$O$22,MATCH('Input|Step changes'!$F12,'Input|Rate of change'!$C$14:$C$22,0),MATCH('Calc|Opex forecast'!$F48,'Input|Rate of change'!$C$14:$O$14,0)))*IF('Input|Step changes'!$E12="$millions",1000000,IF('Input|Step changes'!$E12="$000",1000,1))/IF($E48="$millions",1000000,IF($E48="$000",1000,1)) -> 0 | S48: ='Input|Step changes'!S12*IF('Input|Step changes'!$F12="nominal",LOOKUP($F48,Nominal_to_Real,'Input|Rate of change'!W$27:W$32),INDEX('Input|Rate of change'!$C$14:$O$22,MATCH('Input|Step changes'!$F12,'Input|Rate of change'!$C$14:$C$22,0),MATCH('Calc|Opex forecast'!$F48,'Input|Rate of change'!$C$14:$O$14,0)))*IF('Input|Step changes'!$E12="$millions",1000000,IF('Input|Step changes'!$E12="$000",1000,1))/IF($E48="$millions",1000000,IF($E48="$000",1000,1)) -> 0
C49: ='Input|Step changes'!C13 -> 0 | D49: Calculated | E49: $millions | F49: =$F$8 -> 2018-19 | J49: ='Input|Step changes'!J13*IF('Input|Step changes'!$F13="nominal",LOOKUP($F49,Nominal_to_Real,'Input|Rate of change'!N$27:N$32),INDEX('Input|Rate of change'!$C$14:$O$22,MATCH('Input|Step changes'!$F13,'Input|Rate of change'!$C$14:$C$22,0),MATCH('Calc|Opex forecast'!$F49,'Input|Rate of change'!$C$14:$O$14,0)))*IF('Input|Step changes'!$E13="$millions",1000000,IF('Input|Step changes'!$E13="$000",1000,1))/IF($E49="$millions",1000000,IF($E49="$000",1000,1)) -> 0 | K49: ='Input|Step changes'!K13*IF('Input|Step changes'!$F13="nominal",LOOKUP($F49,Nominal_to_Real,'Input|Rate of change'!O$27:O$32),INDEX('Input|Rate of change'!$C$14:$O$22,MATCH('Input|Step changes'!$F13,'Input|Rate of change'!$C$14:$C$22,0),MATCH('Calc|Opex forecast'!$F49,'Input|Rate of change'!$C$14:$O$14,0)))*IF('Input|Step changes'!$E13="$millions",1000000,IF('Input|Step changes'!$E13="$000",1000,1))/IF($E49="$millions",1000000,IF($E49="$000",1000,1)) -> 0 | L49: ='Input|Step changes'!L13*IF('Input|Step changes'!$F13="nominal",LOOKUP($F49,Nominal_to_Real,'Input|Rate of change'!P$27:P$32),INDEX('Input|Rate of change'!$C$14:$O$22,MATCH('Input|Step changes'!$F13,'Input|Rate of change'!$C$14:$C$22,0),MATCH('Calc|Opex forecast'!$F49,'Input|Rate of change'!$C$14:$O$14,0)))*IF('Input|Step changes'!$E13="$millions",1000000,IF('Input|Step changes'!$E13="$000",1000,1))/IF($E49="$millions",1000000,IF($E49="$000",1000,1)) -> 0 | M49: ='Input|Step changes'!M13*IF('Input|Step changes'!$F13="nominal",LOOKUP($F49,Nominal_to_Real,'Input|Rate of change'!Q$27:Q$32),INDEX('Input|Rate of change'!$C$14:$O$22,MATCH('Input|Step changes'!$F13,'Input|Rate of change'!$C$14:$C$22,0),MATCH('Calc|Opex forecast'!$F49,'Input|Rate of change'!$C$14:$O$14,0)))*IF('Input|Step changes'!$E13="$millions",1000000,IF('Input|Step changes'!$E13="$000",1000,1))/IF($E49="$millions",1000000,IF($E49="$000",1000,1)) -> 0 | N49: ='Input|Step changes'!N13*IF('Input|Step changes'!$F13="nominal",LOOKUP($F49,Nominal_to_Real,'Input|Rate of change'!R$27:R$32),INDEX('Input|Rate of change'!$C$14:$O$22,MATCH('Input|Step changes'!$F13,'Input|Rate of change'!$C$14:$C$22,0),MATCH('Calc|Opex forecast'!$F49,'Input|Rate of change'!$C$14:$O$14,0)))*IF('Input|Step changes'!$E13="$millions",1000000,IF('Input|Step changes'!$E13="$000",1000,1))/IF($E49="$millions",1000000,IF($E49="$000",1000,1)) -> 0 | O49: ='Input|Step changes'!O13*IF('Input|Step changes'!$F13="nominal",LOOKUP($F49,Nominal_to_Real,'Input|Rate of change'!S$27:S$32),INDEX('Input|Rate of change'!$C$14:$O$22,MATCH('Input|Step changes'!$F13,'Input|Rate of change'!$C$14:$C$22,0),MATCH('Calc|Opex forecast'!$F49,'Input|Rate of change'!$C$14:$O$14,0)))*IF('Input|Step changes'!$E13="$millions",1000000,IF('Input|Step changes'!$E13="$000",1000,1))/IF($E49="$millions",1000000,IF($E49="$000",1000,1)) -> 0 | P49: ='Input|Step changes'!P13*IF('Input|Step changes'!$F13="nominal",LOOKUP($F49,Nominal_to_Real,'Input|Rate of change'!T$27:T$32),INDEX('Input|Rate of change'!$C$14:$O$22,MATCH('Input|Step changes'!$F13,'Input|Rate of change'!$C$14:$C$22,0),MATCH('Calc|Opex forecast'!$F49,'Input|Rate of change'!$C$14:$O$14,0)))*IF('Input|Step changes'!$E13="$millions",1000000,IF('Input|Step changes'!$E13="$000",1000,1))/IF($E49="$millions",1000000,IF($E49="$000",1000,1)) -> 0 | Q49: ='Input|Step changes'!Q13*IF('Input|Step changes'!$F13="nominal",LOOKUP($F49,Nominal_to_Real,'Input|Rate of change'!U$27:U$32),INDEX('Input|Rate of change'!$C$14:$O$22,MATCH('Input|Step changes'!$F13,'Input|Rate of change'!$C$14:$C$22,0),MATCH('Calc|Opex forecast'!$F49,'Input|Rate of change'!$C$14:$O$14,0)))*IF('Input|Step changes'!$E13="$millions",1000000,IF('Input|Step changes'!$E13="$000",1000,1))/IF($E49="$millions",1000000,IF($E49="$000",1000,1)) -> 0 | R49: ='Input|Step changes'!R13*IF('Input|Step changes'!$F13="nominal",LOOKUP($F49,Nominal_to_Real,'Input|Rate of change'!V$27:V$32),INDEX('Input|Rate of change'!$C$14:$O$22,MATCH('Input|Step changes'!$F13,'Input|Rate of change'!$C$14:$C$22,0),MATCH('Calc|Opex forecast'!$F49,'Input|Rate of change'!$C$14:$O$14,0)))*IF('Input|Step changes'!$E13="$millions",1000000,IF('Input|Step changes'!$E13="$000",1000,1))/IF($E49="$millions",1000000,IF($E49="$000",1000,1)) -> 0 | S49: ='Input|Step changes'!S13*IF('Input|Step changes'!$F13="nominal",LOOKUP($F49,Nominal_to_Real,'Input|Rate of change'!W$27:W$32),INDEX('Input|Rate of change'!$C$14:$O$22,MATCH('Input|Step changes'!$F13,'Input|Rate of change'!$C$14:$C$22,0),MATCH('Calc|Opex forecast'!$F49,'Input|Rate of change'!$C$14:$O$14,0)))*IF('Input|Step changes'!$E13="$millions",1000000,IF('Input|Step changes'!$E13="$000",1000,1))/IF($E49="$millions",1000000,IF($E49="$000",1000,1)) -> 0
C50: ='Input|Step changes'!C14 -> 0 | D50: Calculated | E50: $millions | F50: 2018-19 | J50: ='Input|Step changes'!J14*IF('Input|Step changes'!$F14="nominal",LOOKUP($F50,Nominal_to_Real,'Input|Rate of change'!N$27:N$32),INDEX('Input|Rate of change'!$C$14:$O$22,MATCH('Input|Step changes'!$F14,'Input|Rate of change'!$C$14:$C$22,0),MATCH('Calc|Opex forecast'!$F50,'Input|Rate of change'!$C$14:$O$14,0)))*IF('Input|Step changes'!$E14="$millions",1000000,IF('Input|Step changes'!$E14="$000",1000,1))/IF($E50="$millions",1000000,IF($E50="$000",1000,1)) -> 0 | K50: ='Input|Step changes'!K14*IF('Input|Step changes'!$F14="nominal",LOOKUP($F50,Nominal_to_Real,'Input|Rate of change'!O$27:O$32),INDEX('Input|Rate of change'!$C$14:$O$22,MATCH('Input|Step changes'!$F14,'Input|Rate of change'!$C$14:$C$22,0),MATCH('Calc|Opex forecast'!$F50,'Input|Rate of change'!$C$14:$O$14,0)))*IF('Input|Step changes'!$E14="$millions",1000000,IF('Input|Step changes'!$E14="$000",1000,1))/IF($E50="$millions",1000000,IF($E50="$000",1000,1)) -> 0 | L50: ='Input|Step changes'!L14*IF('Input|Step changes'!$F14="nominal",LOOKUP($F50,Nominal_to_Real,'Input|Rate of change'!P$27:P$32),INDEX('Input|Rate of change'!$C$14:$O$22,MATCH('Input|Step changes'!$F14,'Input|Rate of change'!$C$14:$C$22,0),MATCH('Calc|Opex forecast'!$F50,'Input|Rate of change'!$C$14:$O$14,0)))*IF('Input|Step changes'!$E14="$millions",1000000,IF('Input|Step changes'!$E14="$000",1000,1))/IF($E50="$millions",1000000,IF($E50="$000",1000,1)) -> 0 | M50: ='Input|Step changes'!M14*IF('Input|Step changes'!$F14="nominal",LOOKUP($F50,Nominal_to_Real,'Input|Rate of change'!Q$27:Q$32),INDEX('Input|Rate of change'!$C$14:$O$22,MATCH('Input|Step changes'!$F14,'Input|Rate of change'!$C$14:$C$22,0),MATCH('Calc|Opex forecast'!$F50,'Input|Rate of change'!$C$14:$O$14,0)))*IF('Input|Step changes'!$E14="$millions",1000000,IF('Input|Step changes'!$E14="$000",1000,1))/IF($E50="$millions",1000000,IF($E50="$000",1000,1)) -> 0 | N50: ='Input|Step changes'!N14*IF('Input|Step changes'!$F14="nominal",LOOKUP($F50,Nominal_to_Real,'Input|Rate of change'!R$27:R$32),INDEX('Input|Rate of change'!$C$14:$O$22,MATCH('Input|Step changes'!$F14,'Input|Rate of change'!$C$14:$C$22,0),MATCH('Calc|Opex forecast'!$F50,'Input|Rate of change'!$C$14:$O$14,0)))*IF('Input|Step changes'!$E14="$millions",1000000,IF('Input|Step changes'!$E14="$000",1000,1))/IF($E50="$millions",1000000,IF($E50="$000",1000,1)) -> 0 | O50: ='Input|Step changes'!O14*IF('Input|Step changes'!$F14="nominal",LOOKUP($F50,Nominal_to_Real,'Input|Rate of change'!S$27:S$32),INDEX('Input|Rate of change'!$C$14:$O$22,MATCH('Input|Step changes'!$F14,'Input|Rate of change'!$C$14:$C$22,0),MATCH('Calc|Opex forecast'!$F50,'Input|Rate of change'!$C$14:$O$14,0)))*IF('Input|Step changes'!$E14="$millions",1000000,IF('Input|Step changes'!$E14="$000",1000,1))/IF($E50="$millions",1000000,IF($E50="$000",1000,1)) -> 0 | P50: ='Input|Step changes'!P14*IF('Input|Step changes'!$F14="nominal",LOOKUP($F50,Nominal_to_Real,'Input|Rate of change'!T$27:T$32),INDEX('Input|Rate of change'!$C$14:$O$22,MATCH('Input|Step changes'!$F14,'Input|Rate of change'!$C$14:$C$22,0),MATCH('Calc|Opex forecast'!$F50,'Input|Rate of change'!$C$14:$O$14,0)))*IF('Input|Step changes'!$E14="$millions",1000000,IF('Input|Step changes'!$E14="$000",1000,1))/IF($E50="$millions",1000000,IF($E50="$000",1000,1)) -> 0 | Q50: ='Input|Step changes'!Q14*IF('Input|Step changes'!$F14="nominal",LOOKUP($F50,Nominal_to_Real,'Input|Rate of change'!U$27:U$32),INDEX('Input|Rate of change'!$C$14:$O$22,MATCH('Input|Step changes'!$F14,'Input|Rate of change'!$C$14:$C$22,0),MATCH('Calc|Opex forecast'!$F50,'Input|Rate of change'!$C$14:$O$14,0)))*IF('Input|Step changes'!$E14="$millions",1000000,IF('Input|Step changes'!$E14="$000",1000,1))/IF($E50="$millions",1000000,IF($E50="$000",1000,1)) -> 0 | R50: ='Input|Step changes'!R14*IF('Input|Step changes'!$F14="nominal",LOOKUP($F50,Nominal_to_Real,'Input|Rate of change'!V$27:V$32),INDEX('Input|Rate of change'!$C$14:$O$22,MATCH('Input|Step changes'!$F14,'Input|Rate of change'!$C$14:$C$22,0),MATCH('Calc|Opex forecast'!$F50,'Input|Rate of change'!$C$14:$O$14,0)))*IF('Input|Step changes'!$E14="$millions",1000000,IF('Input|Step changes'!$E14="$000",1000,1))/IF($E50="$millions",1000000,IF($E50="$000",1000,1)) -> 0 | S50: ='Input|Step changes'!S14*IF('Input|Step changes'!$F14="nominal",LOOKUP($F50,Nominal_to_Real,'Input|Rate of change'!W$27:W$32),INDEX('Input|Rate of change'!$C$14:$O$22,MATCH('Input|Step changes'!$F14,'Input|Rate of change'!$C$14:$C$22,0),MATCH('Calc|Opex forecast'!$F50,'Input|Rate of change'!$C$14:$O$14,0)))*IF('Input|Step changes'!$E14="$millions",1000000,IF('Input|Step changes'!$E14="$000",1000,1))/IF($E50="$millions",1000000,IF($E50="$000",1000,1)) -> 0
C51: ='Input|Step changes'!C15 -> 0 | D51: Calculated | E51: $millions | F51: 2018-19 | J51: ='Input|Step changes'!J15*IF('Input|Step changes'!$F15="nominal",LOOKUP($F51,Nominal_to_Real,'Input|Rate of change'!N$27:N$32),INDEX('Input|Rate of change'!$C$14:$O$22,MATCH('Input|Step changes'!$F15,'Input|Rate of change'!$C$14:$C$22,0),MATCH('Calc|Opex forecast'!$F51,'Input|Rate of change'!$C$14:$O$14,0)))*IF('Input|Step changes'!$E15="$millions",1000000,IF('Input|Step changes'!$E15="$000",1000,1))/IF($E51="$millions",1000000,IF($E51="$000",1000,1)) -> 0 | K51: ='Input|Step changes'!K15*IF('Input|Step changes'!$F15="nominal",LOOKUP($F51,Nominal_to_Real,'Input|Rate of change'!O$27:O$32),INDEX('Input|Rate of change'!$C$14:$O$22,MATCH('Input|Step changes'!$F15,'Input|Rate of change'!$C$14:$C$22,0),MATCH('Calc|Opex forecast'!$F51,'Input|Rate of change'!$C$14:$O$14,0)))*IF('Input|Step changes'!$E15="$millions",1000000,IF('Input|Step changes'!$E15="$000",1000,1))/IF($E51="$millions",1000000,IF($E51="$000",1000,1)) -> 0 | L51: ='Input|Step changes'!L15*IF('Input|Step changes'!$F15="nominal",LOOKUP($F51,Nominal_to_Real,'Input|Rate of change'!P$27:P$32),INDEX('Input|Rate of change'!$C$14:$O$22,MATCH('Input|Step changes'!$F15,'Input|Rate of change'!$C$14:$C$22,0),MATCH('Calc|Opex forecast'!$F51,'Input|Rate of change'!$C$14:$O$14,0)))*IF('Input|Step changes'!$E15="$millions",1000000,IF('Input|Step changes'!$E15="$000",1000,1))/IF($E51="$millions",1000000,IF($E51="$000",1000,1)) -> 0 | M51: ='Input|Step changes'!M15*IF('Input|Step changes'!$F15="nominal",LOOKUP($F51,Nominal_to_Real,'Input|Rate of change'!Q$27:Q$32),INDEX('Input|Rate of change'!$C$14:$O$22,MATCH('Input|Step changes'!$F15,'Input|Rate of change'!$C$14:$C$22,0),MATCH('Calc|Opex forecast'!$F51,'Input|Rate of change'!$C$14:$O$14,0)))*IF('Input|Step changes'!$E15="$millions",1000000,IF('Input|Step changes'!$E15="$000",1000,1))/IF($E51="$millions",1000000,IF($E51="$000",1000,1)) -> 0 | N51: ='Input|Step changes'!N15*IF('Input|Step changes'!$F15="nominal",LOOKUP($F51,Nominal_to_Real,'Input|Rate of change'!R$27:R$32),INDEX('Input|Rate of change'!$C$14:$O$22,MATCH('Input|Step changes'!$F15,'Input|Rate of change'!$C$14:$C$22,0),MATCH('Calc|Opex forecast'!$F51,'Input|Rate of change'!$C$14:$O$14,0)))*IF('Input|Step changes'!$E15="$millions",1000000,IF('Input|Step changes'!$E15="$000",1000,1))/IF($E51="$millions",1000000,IF($E51="$000",1000,1)) -> 0 | O51: ='Input|Step changes'!O15*IF('Input|Step changes'!$F15="nominal",LOOKUP($F51,Nominal_to_Real,'Input|Rate of change'!S$27:S$32),INDEX('Input|Rate of change'!$C$14:$O$22,MATCH('Input|Step changes'!$F15,'Input|Rate of change'!$C$14:$C$22,0),MATCH('Calc|Opex forecast'!$F51,'Input|Rate of change'!$C$14:$O$14,0)))*IF('Input|Step changes'!$E15="$millions",1000000,IF('Input|Step changes'!$E15="$000",1000,1))/IF($E51="$millions",1000000,IF($E51="$000",1000,1)) -> 0 | P51: ='Input|Step changes'!P15*IF('Input|Step changes'!$F15="nominal",LOOKUP($F51,Nominal_to_Real,'Input|Rate of change'!T$27:T$32),INDEX('Input|Rate of change'!$C$14:$O$22,MATCH('Input|Step changes'!$F15,'Input|Rate of change'!$C$14:$C$22,0),MATCH('Calc|Opex forecast'!$F51,'Input|Rate of change'!$C$14:$O$14,0)))*IF('Input|Step changes'!$E15="$millions",1000000,IF('Input|Step changes'!$E15="$000",1000,1))/IF($E51="$millions",1000000,IF($E51="$000",1000,1)) -> 0 | Q51: ='Input|Step changes'!Q15*IF('Input|Step changes'!$F15="nominal",LOOKUP($F51,Nominal_to_Real,'Input|Rate of change'!U$27:U$32),INDEX('Input|Rate of change'!$C$14:$O$22,MATCH('Input|Step changes'!$F15,'Input|Rate of change'!$C$14:$C$22,0),MATCH('Calc|Opex forecast'!$F51,'Input|Rate of change'!$C$14:$O$14,0)))*IF('Input|Step changes'!$E15="$millions",1000000,IF('Input|Step changes'!$E15="$000",1000,1))/IF($E51="$millions",1000000,IF($E51="$000",1000,1)) -> 0 | R51: ='Input|Step changes'!R15*IF('Input|Step changes'!$F15="nominal",LOOKUP($F51,Nominal_to_Real,'Input|Rate of change'!V$27:V$32),INDEX('Input|Rate of change'!$C$14:$O$22,MATCH('Input|Step changes'!$F15,'Input|Rate of change'!$C$14:$C$22,0),MATCH('Calc|Opex forecast'!$F51,'Input|Rate of change'!$C$14:$O$14,0)))*IF('Input|Step changes'!$E15="$millions",1000000,IF('Input|Step changes'!$E15="$000",1000,1))/IF($E51="$millions",1000000,IF($E51="$000",1000,1)) -> 0 | S51: ='Input|Step changes'!S15*IF('Input|Step changes'!$F15="nominal",LOOKUP($F51,Nominal_to_Real,'Input|Rate of change'!W$27:W$32),INDEX('Input|Rate of change'!$C$14:$O$22,MATCH('Input|Step changes'!$F15,'Input|Rate of change'!$C$14:$C$22,0),MATCH('Calc|Opex forecast'!$F51,'Input|Rate of change'!$C$14:$O$14,0)))*IF('Input|Step changes'!$E15="$millions",1000000,IF('Input|Step changes'!$E15="$000",1000,1))/IF($E51="$millions",1000000,IF($E51="$000",1000,1)) -> 0
C52: ='Input|Step changes'!C16 -> 0 | D52: Calculated | E52: $millions | F52: 2018-19 | J52: ='Input|Step changes'!J16*IF('Input|Step changes'!$F16="nominal",LOOKUP($F52,Nominal_to_Real,'Input|Rate of change'!N$27:N$32),INDEX('Input|Rate of change'!$C$14:$O$22,MATCH('Input|Step changes'!$F16,'Input|Rate of change'!$C$14:$C$22,0),MATCH('Calc|Opex forecast'!$F52,'Input|Rate of change'!$C$14:$O$14,0)))*IF('Input|Step changes'!$E16="$millions",1000000,IF('Input|Step changes'!$E16="$000",1000,1))/IF($E52="$millions",1000000,IF($E52="$000",1000,1)) -> 0 | K52: ='Input|Step changes'!K16*IF('Input|Step changes'!$F16="nominal",LOOKUP($F52,Nominal_to_Real,'Input|Rate of change'!O$27:O$32),INDEX('Input|Rate of change'!$C$14:$O$22,MATCH('Input|Step changes'!$F16,'Input|Rate of change'!$C$14:$C$22,0),MATCH('Calc|Opex forecast'!$F52,'Input|Rate of change'!$C$14:$O$14,0)))*IF('Input|Step changes'!$E16="$millions",1000000,IF('Input|Step changes'!$E16="$000",1000,1))/IF($E52="$millions",1000000,IF($E52="$000",1000,1)) -> 0 | L52: ='Input|Step changes'!L16*IF('Input|Step changes'!$F16="nominal",LOOKUP($F52,Nominal_to_Real,'Input|Rate of change'!P$27:P$32),INDEX('Input|Rate of change'!$C$14:$O$22,MATCH('Input|Step changes'!$F16,'Input|Rate of change'!$C$14:$C$22,0),MATCH('Calc|Opex forecast'!$F52,'Input|Rate of change'!$C$14:$O$14,0)))*IF('Input|Step changes'!$E16="$millions",1000000,IF('Input|Step changes'!$E16="$000",1000,1))/IF($E52="$millions",1000000,IF($E52="$000",1000,1)) -> 0 | M52: ='Input|Step changes'!M16*IF('Input|Step changes'!$F16="nominal",LOOKUP($F52,Nominal_to_Real,'Input|Rate of change'!Q$27:Q$32),INDEX('Input|Rate of change'!$C$14:$O$22,MATCH('Input|Step changes'!$F16,'Input|Rate of change'!$C$14:$C$22,0),MATCH('Calc|Opex forecast'!$F52,'Input|Rate of change'!$C$14:$O$14,0)))*IF('Input|Step changes'!$E16="$millions",1000000,IF('Input|Step changes'!$E16="$000",1000,1))/IF($E52="$millions",1000000,IF($E52="$000",1000,1)) -> 0 | N52: ='Input|Step changes'!N16*IF('Input|Step changes'!$F16="nominal",LOOKUP($F52,Nominal_to_Real,'Input|Rate of change'!R$27:R$32),INDEX('Input|Rate of change'!$C$14:$O$22,MATCH('Input|Step changes'!$F16,'Input|Rate of change'!$C$14:$C$22,0),MATCH('Calc|Opex forecast'!$F52,'Input|Rate of change'!$C$14:$O$14,0)))*IF('Input|Step changes'!$E16="$millions",1000000,IF('Input|Step changes'!$E16="$000",1000,1))/IF($E52="$millions",1000000,IF($E52="$000",1000,1)) -> 0 | O52: ='Input|Step changes'!O16*IF('Input|Step changes'!$F16="nominal",LOOKUP($F52,Nominal_to_Real,'Input|Rate of change'!S$27:S$32),INDEX('Input|Rate of change'!$C$14:$O$22,MATCH('Input|Step changes'!$F16,'Input|Rate of change'!$C$14:$C$22,0),MATCH('Calc|Opex forecast'!$F52,'Input|Rate of change'!$C$14:$O$14,0)))*IF('Input|Step changes'!$E16="$millions",1000000,IF('Input|Step changes'!$E16="$000",1000,1))/IF($E52="$millions",1000000,IF($E52="$000",1000,1)) -> 0 | P52: ='Input|Step changes'!P16*IF('Input|Step changes'!$F16="nominal",LOOKUP($F52,Nominal_to_Real,'Input|Rate of change'!T$27:T$32),INDEX('Input|Rate of change'!$C$14:$O$22,MATCH('Input|Step changes'!$F16,'Input|Rate of change'!$C$14:$C$22,0),MATCH('Calc|Opex forecast'!$F52,'Input|Rate of change'!$C$14:$O$14,0)))*IF('Input|Step changes'!$E16="$millions",1000000,IF('Input|Step changes'!$E16="$000",1000,1))/IF($E52="$millions",1000000,IF($E52="$000",1000,1)) -> 0 | Q52: ='Input|Step changes'!Q16*IF('Input|Step changes'!$F16="nominal",LOOKUP($F52,Nominal_to_Real,'Input|Rate of change'!U$27:U$32),INDEX('Input|Rate of change'!$C$14:$O$22,MATCH('Input|Step changes'!$F16,'Input|Rate of change'!$C$14:$C$22,0),MATCH('Calc|Opex forecast'!$F52,'Input|Rate of change'!$C$14:$O$14,0)))*IF('Input|Step changes'!$E16="$millions",1000000,IF('Input|Step changes'!$E16="$000",1000,1))/IF($E52="$millions",1000000,IF($E52="$000",1000,1)) -> 0 | R52: ='Input|Step changes'!R16*IF('Input|Step changes'!$F16="nominal",LOOKUP($F52,Nominal_to_Real,'Input|Rate of change'!V$27:V$32),INDEX('Input|Rate of change'!$C$14:$O$22,MATCH('Input|Step changes'!$F16,'Input|Rate of change'!$C$14:$C$22,0),MATCH('Calc|Opex forecast'!$F52,'Input|Rate of change'!$C$14:$O$14,0)))*IF('Input|Step changes'!$E16="$millions",1000000,IF('Input|Step changes'!$E16="$000",1000,1))/IF($E52="$millions",1000000,IF($E52="$000",1000,1)) -> 0 | S52: ='Input|Step changes'!S16*IF('Input|Step changes'!$F16="nominal",LOOKUP($F52,Nominal_to_Real,'Input|Rate of change'!W$27:W$32),INDEX('Input|Rate of change'!$C$14:$O$22,MATCH('Input|Step changes'!$F16,'Input|Rate of change'!$C$14:$C$22,0),MATCH('Calc|Opex forecast'!$F52,'Input|Rate of change'!$C$14:$O$14,0)))*IF('Input|Step changes'!$E16="$millions",1000000,IF('Input|Step changes'!$E16="$000",1000,1))/IF($E52="$millions",1000000,IF($E52="$000",1000,1)) -> 0
C53: ='Input|Step changes'!C17 -> 0 | D53: Calculated | E53: $millions | F53: 2018-19 | J53: ='Input|Step changes'!J17*IF('Input|Step changes'!$F17="nominal",LOOKUP($F53,Nominal_to_Real,'Input|Rate of change'!N$27:N$32),INDEX('Input|Rate of change'!$C$14:$O$22,MATCH('Input|Step changes'!$F17,'Input|Rate of change'!$C$14:$C$22,0),MATCH('Calc|Opex forecast'!$F53,'Input|Rate of change'!$C$14:$O$14,0)))*IF('Input|Step changes'!$E17="$millions",1000000,IF('Input|Step changes'!$E17="$000",1000,1))/IF($E53="$millions",1000000,IF($E53="$000",1000,1)) -> 0 | K53: ='Input|Step changes'!K17*IF('Input|Step changes'!$F17="nominal",LOOKUP($F53,Nominal_to_Real,'Input|Rate of change'!O$27:O$32),INDEX('Input|Rate of change'!$C$14:$O$22,MATCH('Input|Step changes'!$F17,'Input|Rate of change'!$C$14:$C$22,0),MATCH('Calc|Opex forecast'!$F53,'Input|Rate of change'!$C$14:$O$14,0)))*IF('Input|Step changes'!$E17="$millions",1000000,IF('Input|Step changes'!$E17="$000",1000,1))/IF($E53="$millions",1000000,IF($E53="$000",1000,1)) -> 0 | L53: ='Input|Step changes'!L17*IF('Input|Step changes'!$F17="nominal",LOOKUP($F53,Nominal_to_Real,'Input|Rate of change'!P$27:P$32),INDEX('Input|Rate of change'!$C$14:$O$22,MATCH('Input|Step changes'!$F17,'Input|Rate of change'!$C$14:$C$22,0),MATCH('Calc|Opex forecast'!$F53,'Input|Rate of change'!$C$14:$O$14,0)))*IF('Input|Step changes'!$E17="$millions",1000000,IF('Input|Step changes'!$E17="$000",1000,1))/IF($E53="$millions",1000000,IF($E53="$000",1000,1)) -> 0 | M53: ='Input|Step changes'!M17*IF('Input|Step changes'!$F17="nominal",LOOKUP($F53,Nominal_to_Real,'Input|Rate of change'!Q$27:Q$32),INDEX('Input|Rate of change'!$C$14:$O$22,MATCH('Input|Step changes'!$F17,'Input|Rate of change'!$C$14:$C$22,0),MATCH('Calc|Opex forecast'!$F53,'Input|Rate of change'!$C$14:$O$14,0)))*IF('Input|Step changes'!$E17="$millions",1000000,IF('Input|Step changes'!$E17="$000",1000,1))/IF($E53="$millions",1000000,IF($E53="$000",1000,1)) -> 0 | N53: ='Input|Step changes'!N17*IF('Input|Step changes'!$F17="nominal",LOOKUP($F53,Nominal_to_Real,'Input|Rate of change'!R$27:R$32),INDEX('Input|Rate of change'!$C$14:$O$22,MATCH('Input|Step changes'!$F17,'Input|Rate of change'!$C$14:$C$22,0),MATCH('Calc|Opex forecast'!$F53,'Input|Rate of change'!$C$14:$O$14,0)))*IF('Input|Step changes'!$E17="$millions",1000000,IF('Input|Step changes'!$E17="$000",1000,1))/IF($E53="$millions",1000000,IF($E53="$000",1000,1)) -> 0 | O53: ='Input|Step changes'!O17*IF('Input|Step changes'!$F17="nominal",LOOKUP($F53,Nominal_to_Real,'Input|Rate of change'!S$27:S$32),INDEX('Input|Rate of change'!$C$14:$O$22,MATCH('Input|Step changes'!$F17,'Input|Rate of change'!$C$14:$C$22,0),MATCH('Calc|Opex forecast'!$F53,'Input|Rate of change'!$C$14:$O$14,0)))*IF('Input|Step changes'!$E17="$millions",1000000,IF('Input|Step changes'!$E17="$000",1000,1))/IF($E53="$millions",1000000,IF($E53="$000",1000,1)) -> 0 | P53: ='Input|Step changes'!P17*IF('Input|Step changes'!$F17="nominal",LOOKUP($F53,Nominal_to_Real,'Input|Rate of change'!T$27:T$32),INDEX('Input|Rate of change'!$C$14:$O$22,MATCH('Input|Step changes'!$F17,'Input|Rate of change'!$C$14:$C$22,0),MATCH('Calc|Opex forecast'!$F53,'Input|Rate of change'!$C$14:$O$14,0)))*IF('Input|Step changes'!$E17="$millions",1000000,IF('Input|Step changes'!$E17="$000",1000,1))/IF($E53="$millions",1000000,IF($E53="$000",1000,1)) -> 0 | Q53: ='Input|Step changes'!Q17*IF('Input|Step changes'!$F17="nominal",LOOKUP($F53,Nominal_to_Real,'Input|Rate of change'!U$27:U$32),INDEX('Input|Rate of change'!$C$14:$O$22,MATCH('Input|Step changes'!$F17,'Input|Rate of change'!$C$14:$C$22,0),MATCH('Calc|Opex forecast'!$F53,'Input|Rate of change'!$C$14:$O$14,0)))*IF('Input|Step changes'!$E17="$millions",1000000,IF('Input|Step changes'!$E17="$000",1000,1))/IF($E53="$millions",1000000,IF($E53="$000",1000,1)) -> 0 | R53: ='Input|Step changes'!R17*IF('Input|Step changes'!$F17="nominal",LOOKUP($F53,Nominal_to_Real,'Input|Rate of change'!V$27:V$32),INDEX('Input|Rate of change'!$C$14:$O$22,MATCH('Input|Step changes'!$F17,'Input|Rate of change'!$C$14:$C$22,0),MATCH('Calc|Opex forecast'!$F53,'Input|Rate of change'!$C$14:$O$14,0)))*IF('Input|Step changes'!$E17="$millions",1000000,IF('Input|Step changes'!$E17="$000",1000,1))/IF($E53="$millions",1000000,IF($E53="$000",1000,1)) -> 0 | S53: ='Input|Step changes'!S17*IF('Input|Step changes'!$F17="nominal",LOOKUP($F53,Nominal_to_Real,'Input|Rate of change'!W$27:W$32),INDEX('Input|Rate of change'!$C$14:$O$22,MATCH('Input|Step changes'!$F17,'Input|Rate of change'!$C$14:$C$22,0),MATCH('Calc|Opex forecast'!$F53,'Input|Rate of change'!$C$14:$O$14,0)))*IF('Input|Step changes'!$E17="$millions",1000000,IF('Input|Step changes'!$E17="$000",1000,1))/IF($E53="$millions",1000000,IF($E53="$000",1000,1)) -> 0
C54: ='Input|Step changes'!C18 -> 0 | D54: Calculated | E54: $millions | F54: 2018-19 | J54: ='Input|Step changes'!J18*IF('Input|Step changes'!$F18="nominal",LOOKUP($F54,Nominal_to_Real,'Input|Rate of change'!N$27:N$32),INDEX('Input|Rate of change'!$C$14:$O$22,MATCH('Input|Step changes'!$F18,'Input|Rate of change'!$C$14:$C$22,0),MATCH('Calc|Opex forecast'!$F54,'Input|Rate of change'!$C$14:$O$14,0)))*IF('Input|Step changes'!$E18="$millions",1000000,IF('Input|Step changes'!$E18="$000",1000,1))/IF($E54="$millions",1000000,IF($E54="$000",1000,1)) -> 0 | K54: ='Input|Step changes'!K18*IF('Input|Step changes'!$F18="nominal",LOOKUP($F54,Nominal_to_Real,'Input|Rate of change'!O$27:O$32),INDEX('Input|Rate of change'!$C$14:$O$22,MATCH('Input|Step changes'!$F18,'Input|Rate of change'!$C$14:$C$22,0),MATCH('Calc|Opex forecast'!$F54,'Input|Rate of change'!$C$14:$O$14,0)))*IF('Input|Step changes'!$E18="$millions",1000000,IF('Input|Step changes'!$E18="$000",1000,1))/IF($E54="$millions",1000000,IF($E54="$000",1000,1)) -> 0 | L54: ='Input|Step changes'!L18*IF('Input|Step changes'!$F18="nominal",LOOKUP($F54,Nominal_to_Real,'Input|Rate of change'!P$27:P$32),INDEX('Input|Rate of change'!$C$14:$O$22,MATCH('Input|Step changes'!$F18,'Input|Rate of change'!$C$14:$C$22,0),MATCH('Calc|Opex forecast'!$F54,'Input|Rate of change'!$C$14:$O$14,0)))*IF('Input|Step changes'!$E18="$millions",1000000,IF('Input|Step changes'!$E18="$000",1000,1))/IF($E54="$millions",1000000,IF($E54="$000",1000,1)) -> 0 | M54: ='Input|Step changes'!M18*IF('Input|Step changes'!$F18="nominal",LOOKUP($F54,Nominal_to_Real,'Input|Rate of change'!Q$27:Q$32),INDEX('Input|Rate of change'!$C$14:$O$22,MATCH('Input|Step changes'!$F18,'Input|Rate of change'!$C$14:$C$22,0),MATCH('Calc|Opex forecast'!$F54,'Input|Rate of change'!$C$14:$O$14,0)))*IF('Input|Step changes'!$E18="$millions",1000000,IF('Input|Step changes'!$E18="$000",1000,1))/IF($E54="$millions",1000000,IF($E54="$000",1000,1)) -> 0 | N54: ='Input|Step changes'!N18*IF('Input|Step changes'!$F18="nominal",LOOKUP($F54,Nominal_to_Real,'Input|Rate of change'!R$27:R$32),INDEX('Input|Rate of change'!$C$14:$O$22,MATCH('Input|Step changes'!$F18,'Input|Rate of change'!$C$14:$C$22,0),MATCH('Calc|Opex forecast'!$F54,'Input|Rate of change'!$C$14:$O$14,0)))*IF('Input|Step changes'!$E18="$millions",1000000,IF('Input|Step changes'!$E18="$000",1000,1))/IF($E54="$millions",1000000,IF($E54="$000",1000,1)) -> 0 | O54: ='Input|Step changes'!O18*IF('Input|Step changes'!$F18="nominal",LOOKUP($F54,Nominal_to_Real,'Input|Rate of change'!S$27:S$32),INDEX('Input|Rate of change'!$C$14:$O$22,MATCH('Input|Step changes'!$F18,'Input|Rate of change'!$C$14:$C$22,0),MATCH('Calc|Opex forecast'!$F54,'Input|Rate of change'!$C$14:$O$14,0)))*IF('Input|Step changes'!$E18="$millions",1000000,IF('Input|Step changes'!$E18="$000",1000,1))/IF($E54="$millions",1000000,IF($E54="$000",1000,1)) -> 0 | P54: ='Input|Step changes'!P18*IF('Input|Step changes'!$F18="nominal",LOOKUP($F54,Nominal_to_Real,'Input|Rate of change'!T$27:T$32),INDEX('Input|Rate of change'!$C$14:$O$22,MATCH('Input|Step changes'!$F18,'Input|Rate of change'!$C$14:$C$22,0),MATCH('Calc|Opex forecast'!$F54,'Input|Rate of change'!$C$14:$O$14,0)))*IF('Input|Step changes'!$E18="$millions",1000000,IF('Input|Step changes'!$E18="$000",1000,1))/IF($E54="$millions",1000000,IF($E54="$000",1000,1)) -> 0 | Q54: ='Input|Step changes'!Q18*IF('Input|Step changes'!$F18="nominal",LOOKUP($F54,Nominal_to_Real,'Input|Rate of change'!U$27:U$32),INDEX('Input|Rate of change'!$C$14:$O$22,MATCH('Input|Step changes'!$F18,'Input|Rate of change'!$C$14:$C$22,0),MATCH('Calc|Opex forecast'!$F54,'Input|Rate of change'!$C$14:$O$14,0)))*IF('Input|Step changes'!$E18="$millions",1000000,IF('Input|Step changes'!$E18="$000",1000,1))/IF($E54="$millions",1000000,IF($E54="$000",1000,1)) -> 0 | R54: ='Input|Step changes'!R18*IF('Input|Step changes'!$F18="nominal",LOOKUP($F54,Nominal_to_Real,'Input|Rate of change'!V$27:V$32),INDEX('Input|Rate of change'!$C$14:$O$22,MATCH('Input|Step changes'!$F18,'Input|Rate of change'!$C$14:$C$22,0),MATCH('Calc|Opex forecast'!$F54,'Input|Rate of change'!$C$14:$O$14,0)))*IF('Input|Step changes'!$E18="$millions",1000000,IF('Input|Step changes'!$E18="$000",1000,1))/IF($E54="$millions",1000000,IF($E54="$000",1000,1)) -> 0 | S54: ='Input|Step changes'!S18*IF('Input|Step changes'!$F18="nominal",LOOKUP($F54,Nominal_to_Real,'Input|Rate of change'!W$27:W$32),INDEX('Input|Rate of change'!$C$14:$O$22,MATCH('Input|Step changes'!$F18,'Input|Rate of change'!$C$14:$C$22,0),MATCH('Calc|Opex forecast'!$F54,'Input|Rate of change'!$C$14:$O$14,0)))*IF('Input|Step changes'!$E18="$millions",1000000,IF('Input|Step changes'!$E18="$000",1000,1))/IF($E54="$millions",1000000,IF($E54="$000",1000,1)) -> 0
C55: ='Input|Step changes'!C19 -> 0 | D55: Calculated | E55: $millions | F55: 2018-19 | J55: ='Input|Step changes'!J19*IF('Input|Step changes'!$F19="nominal",LOOKUP($F55,Nominal_to_Real,'Input|Rate of change'!N$27:N$32),INDEX('Input|Rate of change'!$C$14:$O$22,MATCH('Input|Step changes'!$F19,'Input|Rate of change'!$C$14:$C$22,0),MATCH('Calc|Opex forecast'!$F55,'Input|Rate of change'!$C$14:$O$14,0)))*IF('Input|Step changes'!$E19="$millions",1000000,IF('Input|Step changes'!$E19="$000",1000,1))/IF($E55="$millions",1000000,IF($E55="$000",1000,1)) -> 0 | K55: ='Input|Step changes'!K19*IF('Input|Step changes'!$F19="nominal",LOOKUP($F55,Nominal_to_Real,'Input|Rate of change'!O$27:O$32),INDEX('Input|Rate of change'!$C$14:$O$22,MATCH('Input|Step changes'!$F19,'Input|Rate of change'!$C$14:$C$22,0),MATCH('Calc|Opex forecast'!$F55,'Input|Rate of change'!$C$14:$O$14,0)))*IF('Input|Step changes'!$E19="$millions",1000000,IF('Input|Step changes'!$E19="$000",1000,1))/IF($E55="$millions",1000000,IF($E55="$000",1000,1)) -> 0 | L55: ='Input|Step changes'!L19*IF('Input|Step changes'!$F19="nominal",LOOKUP($F55,Nominal_to_Real,'Input|Rate of change'!P$27:P$32),INDEX('Input|Rate of change'!$C$14:$O$22,MATCH('Input|Step changes'!$F19,'Input|Rate of change'!$C$14:$C$22,0),MATCH('Calc|Opex forecast'!$F55,'Input|Rate of change'!$C$14:$O$14,0)))*IF('Input|Step changes'!$E19="$millions",1000000,IF('Input|Step changes'!$E19="$000",1000,1))/IF($E55="$millions",1000000,IF($E55="$000",1000,1)) -> 0 | M55: ='Input|Step changes'!M19*IF('Input|Step changes'!$F19="nominal",LOOKUP($F55,Nominal_to_Real,'Input|Rate of change'!Q$27:Q$32),INDEX('Input|Rate of change'!$C$14:$O$22,MATCH('Input|Step changes'!$F19,'Input|Rate of change'!$C$14:$C$22,0),MATCH('Calc|Opex forecast'!$F55,'Input|Rate of change'!$C$14:$O$14,0)))*IF('Input|Step changes'!$E19="$millions",1000000,IF('Input|Step changes'!$E19="$000",1000,1))/IF($E55="$millions",1000000,IF($E55="$000",1000,1)) -> 0 | N55: ='Input|Step changes'!N19*IF('Input|Step changes'!$F19="nominal",LOOKUP($F55,Nominal_to_Real,'Input|Rate of change'!R$27:R$32),INDEX('Input|Rate of change'!$C$14:$O$22,MATCH('Input|Step changes'!$F19,'Input|Rate of change'!$C$14:$C$22,0),MATCH('Calc|Opex forecast'!$F55,'Input|Rate of change'!$C$14:$O$14,0)))*IF('Input|Step changes'!$E19="$millions",1000000,IF('Input|Step changes'!$E19="$000",1000,1))/IF($E55="$millions",1000000,IF($E55="$000",1000,1)) -> 0 | O55: ='Input|Step changes'!O19*IF('Input|Step changes'!$F19="nominal",LOOKUP($F55,Nominal_to_Real,'Input|Rate of change'!S$27:S$32),INDEX('Input|Rate of change'!$C$14:$O$22,MATCH('Input|Step changes'!$F19,'Input|Rate of change'!$C$14:$C$22,0),MATCH('Calc|Opex forecast'!$F55,'Input|Rate of change'!$C$14:$O$14,0)))*IF('Input|Step changes'!$E19="$millions",1000000,IF('Input|Step changes'!$E19="$000",1000,1))/IF($E55="$millions",1000000,IF($E55="$000",1000,1)) -> 0 | P55: ='Input|Step changes'!P19*IF('Input|Step changes'!$F19="nominal",LOOKUP($F55,Nominal_to_Real,'Input|Rate of change'!T$27:T$32),INDEX('Input|Rate of change'!$C$14:$O$22,MATCH('Input|Step changes'!$F19,'Input|Rate of change'!$C$14:$C$22,0),MATCH('Calc|Opex forecast'!$F55,'Input|Rate of change'!$C$14:$O$14,0)))*IF('Input|Step changes'!$E19="$millions",1000000,IF('Input|Step changes'!$E19="$000",1000,1))/IF($E55="$millions",1000000,IF($E55="$000",1000,1)) -> 0 | Q55: ='Input|Step changes'!Q19*IF('Input|Step changes'!$F19="nominal",LOOKUP($F55,Nominal_to_Real,'Input|Rate of change'!U$27:U$32),INDEX('Input|Rate of change'!$C$14:$O$22,MATCH('Input|Step changes'!$F19,'Input|Rate of change'!$C$14:$C$22,0),MATCH('Calc|Opex forecast'!$F55,'Input|Rate of change'!$C$14:$O$14,0)))*IF('Input|Step changes'!$E19="$millions",1000000,IF('Input|Step changes'!$E19="$000",1000,1))/IF($E55="$millions",1000000,IF($E55="$000",1000,1)) -> 0 | R55: ='Input|Step changes'!R19*IF('Input|Step changes'!$F19="nominal",LOOKUP($F55,Nominal_to_Real,'Input|Rate of change'!V$27:V$32),INDEX('Input|Rate of change'!$C$14:$O$22,MATCH('Input|Step changes'!$F19,'Input|Rate of change'!$C$14:$C$22,0),MATCH('Calc|Opex forecast'!$F55,'Input|Rate of change'!$C$14:$O$14,0)))*IF('Input|Step changes'!$E19="$millions",1000000,IF('Input|Step changes'!$E19="$000",1000,1))/IF($E55="$millions",1000000,IF($E55="$000",1000,1)) -> 0 | S55: ='Input|Step changes'!S19*IF('Input|Step changes'!$F19="nominal",LOOKUP($F55,Nominal_to_Real,'Input|Rate of change'!W$27:W$32),INDEX('Input|Rate of change'!$C$14:$O$22,MATCH('Input|Step changes'!$F19,'Input|Rate of change'!$C$14:$C$22,0),MATCH('Calc|Opex forecast'!$F55,'Input|Rate of change'!$C$14:$O$14,0)))*IF('Input|Step changes'!$E19="$millions",1000000,IF('Input|Step changes'!$E19="$000",1000,1))/IF($E55="$millions",1000000,IF($E55="$000",1000,1)) -> 0
C56: ='Input|Step changes'!C20 -> 0 | D56: Calculated | E56: $millions | F56: 2018-19 | J56: ='Input|Step changes'!J20*IF('Input|Step changes'!$F20="nominal",LOOKUP($F56,Nominal_to_Real,'Input|Rate of change'!N$27:N$32),INDEX('Input|Rate of change'!$C$14:$O$22,MATCH('Input|Step changes'!$F20,'Input|Rate of change'!$C$14:$C$22,0),MATCH('Calc|Opex forecast'!$F56,'Input|Rate of change'!$C$14:$O$14,0)))*IF('Input|Step changes'!$E20="$millions",1000000,IF('Input|Step changes'!$E20="$000",1000,1))/IF($E56="$millions",1000000,IF($E56="$000",1000,1)) -> 0 | K56: ='Input|Step changes'!K20*IF('Input|Step changes'!$F20="nominal",LOOKUP($F56,Nominal_to_Real,'Input|Rate of change'!O$27:O$32),INDEX('Input|Rate of change'!$C$14:$O$22,MATCH('Input|Step changes'!$F20,'Input|Rate of change'!$C$14:$C$22,0),MATCH('Calc|Opex forecast'!$F56,'Input|Rate of change'!$C$14:$O$14,0)))*IF('Input|Step changes'!$E20="$millions",1000000,IF('Input|Step changes'!$E20="$000",1000,1))/IF($E56="$millions",1000000,IF($E56="$000",1000,1)) -> 0 | L56: ='Input|Step changes'!L20*IF('Input|Step changes'!$F20="nominal",LOOKUP($F56,Nominal_to_Real,'Input|Rate of change'!P$27:P$32),INDEX('Input|Rate of change'!$C$14:$O$22,MATCH('Input|Step changes'!$F20,'Input|Rate of change'!$C$14:$C$22,0),MATCH('Calc|Opex forecast'!$F56,'Input|Rate of change'!$C$14:$O$14,0)))*IF('Input|Step changes'!$E20="$millions",1000000,IF('Input|Step changes'!$E20="$000",1000,1))/IF($E56="$millions",1000000,IF($E56="$000",1000,1)) -> 0 | M56: ='Input|Step changes'!M20*IF('Input|Step changes'!$F20="nominal",LOOKUP($F56,Nominal_to_Real,'Input|Rate of change'!Q$27:Q$32),INDEX('Input|Rate of change'!$C$14:$O$22,MATCH('Input|Step changes'!$F20,'Input|Rate of change'!$C$14:$C$22,0),MATCH('Calc|Opex forecast'!$F56,'Input|Rate of change'!$C$14:$O$14,0)))*IF('Input|Step changes'!$E20="$millions",1000000,IF('Input|Step changes'!$E20="$000",1000,1))/IF($E56="$millions",1000000,IF($E56="$000",1000,1)) -> 0 | N56: ='Input|Step changes'!N20*IF('Input|Step changes'!$F20="nominal",LOOKUP($F56,Nominal_to_Real,'Input|Rate of change'!R$27:R$32),INDEX('Input|Rate of change'!$C$14:$O$22,MATCH('Input|Step changes'!$F20,'Input|Rate of change'!$C$14:$C$22,0),MATCH('Calc|Opex forecast'!$F56,'Input|Rate of change'!$C$14:$O$14,0)))*IF('Input|Step changes'!$E20="$millions",1000000,IF('Input|Step changes'!$E20="$000",1000,1))/IF($E56="$millions",1000000,IF($E56="$000",1000,1)) -> 0 | O56: ='Input|Step changes'!O20*IF('Input|Step changes'!$F20="nominal",LOOKUP($F56,Nominal_to_Real,'Input|Rate of change'!S$27:S$32),INDEX('Input|Rate of change'!$C$14:$O$22,MATCH('Input|Step changes'!$F20,'Input|Rate of change'!$C$14:$C$22,0),MATCH('Calc|Opex forecast'!$F56,'Input|Rate of change'!$C$14:$O$14,0)))*IF('Input|Step changes'!$E20="$millions",1000000,IF('Input|Step changes'!$E20="$000",1000,1))/IF($E56="$millions",1000000,IF($E56="$000",1000,1)) -> 0 | P56: ='Input|Step changes'!P20*IF('Input|Step changes'!$F20="nominal",LOOKUP($F56,Nominal_to_Real,'Input|Rate of change'!T$27:T$32),INDEX('Input|Rate of change'!$C$14:$O$22,MATCH('Input|Step changes'!$F20,'Input|Rate of change'!$C$14:$C$22,0),MATCH('Calc|Opex forecast'!$F56,'Input|Rate of change'!$C$14:$O$14,0)))*IF('Input|Step changes'!$E20="$millions",1000000,IF('Input|Step changes'!$E20="$000",1000,1))/IF($E56="$millions",1000000,IF($E56="$000",1000,1)) -> 0 | Q56: ='Input|Step changes'!Q20*IF('Input|Step changes'!$F20="nominal",LOOKUP($F56,Nominal_to_Real,'Input|Rate of change'!U$27:U$32),INDEX('Input|Rate of change'!$C$14:$O$22,MATCH('Input|Step changes'!$F20,'Input|Rate of change'!$C$14:$C$22,0),MATCH('Calc|Opex forecast'!$F56,'Input|Rate of change'!$C$14:$O$14,0)))*IF('Input|Step changes'!$E20="$millions",1000000,IF('Input|Step changes'!$E20="$000",1000,1))/IF($E56="$millions",1000000,IF($E56="$000",1000,1)) -> 0 | R56: ='Input|Step changes'!R20*IF('Input|Step changes'!$F20="nominal",LOOKUP($F56,Nominal_to_Real,'Input|Rate of change'!V$27:V$32),INDEX('Input|Rate of change'!$C$14:$O$22,MATCH('Input|Step changes'!$F20,'Input|Rate of change'!$C$14:$C$22,0),MATCH('Calc|Opex forecast'!$F56,'Input|Rate of change'!$C$14:$O$14,0)))*IF('Input|Step changes'!$E20="$millions",1000000,IF('Input|Step changes'!$E20="$000",1000,1))/IF($E56="$millions",1000000,IF($E56="$000",1000,1)) -> 0 | S56: ='Input|Step changes'!S20*IF('Input|Step changes'!$F20="nominal",LOOKUP($F56,Nominal_to_Real,'Input|Rate of change'!W$27:W$32),INDEX('Input|Rate of change'!$C$14:$O$22,MATCH('Input|Step changes'!$F20,'Input|Rate of change'!$C$14:$C$22,0),MATCH('Calc|Opex forecast'!$F56,'Input|Rate of change'!$C$14:$O$14,0)))*IF('Input|Step changes'!$E20="$millions",1000000,IF('Input|Step changes'!$E20="$000",1000,1))/IF($E56="$millions",1000000,IF($E56="$000",1000,1)) -> 0
C57: ='Input|Step changes'!C21 -> 0 | D57: Calculated | E57: $millions | F57: 2018-19 | J57: ='Input|Step changes'!J21*IF('Input|Step changes'!$F21="nominal",LOOKUP($F57,Nominal_to_Real,'Input|Rate of change'!N$27:N$32),INDEX('Input|Rate of change'!$C$14:$O$22,MATCH('Input|Step changes'!$F21,'Input|Rate of change'!$C$14:$C$22,0),MATCH('Calc|Opex forecast'!$F57,'Input|Rate of change'!$C$14:$O$14,0)))*IF('Input|Step changes'!$E21="$millions",1000000,IF('Input|Step changes'!$E21="$000",1000,1))/IF($E57="$millions",1000000,IF($E57="$000",1000,1)) -> 0 | K57: ='Input|Step changes'!K21*IF('Input|Step changes'!$F21="nominal",LOOKUP($F57,Nominal_to_Real,'Input|Rate of change'!O$27:O$32),INDEX('Input|Rate of change'!$C$14:$O$22,MATCH('Input|Step changes'!$F21,'Input|Rate of change'!$C$14:$C$22,0),MATCH('Calc|Opex forecast'!$F57,'Input|Rate of change'!$C$14:$O$14,0)))*IF('Input|Step changes'!$E21="$millions",1000000,IF('Input|Step changes'!$E21="$000",1000,1))/IF($E57="$millions",1000000,IF($E57="$000",1000,1)) -> 0 | L57: ='Input|Step changes'!L21*IF('Input|Step changes'!$F21="nominal",LOOKUP($F57,Nominal_to_Real,'Input|Rate of change'!P$27:P$32),INDEX('Input|Rate of change'!$C$14:$O$22,MATCH('Input|Step changes'!$F21,'Input|Rate of change'!$C$14:$C$22,0),MATCH('Calc|Opex forecast'!$F57,'Input|Rate of change'!$C$14:$O$14,0)))*IF('Input|Step changes'!$E21="$millions",1000000,IF('Input|Step changes'!$E21="$000",1000,1))/IF($E57="$millions",1000000,IF($E57="$000",1000,1)) -> 0 | M57: ='Input|Step changes'!M21*IF('Input|Step changes'!$F21="nominal",LOOKUP($F57,Nominal_to_Real,'Input|Rate of change'!Q$27:Q$32),INDEX('Input|Rate of change'!$C$14:$O$22,MATCH('Input|Step changes'!$F21,'Input|Rate of change'!$C$14:$C$22,0),MATCH('Calc|Opex forecast'!$F57,'Input|Rate of change'!$C$14:$O$14,0)))*IF('Input|Step changes'!$E21="$millions",1000000,IF('Input|Step changes'!$E21="$000",1000,1))/IF($E57="$millions",1000000,IF($E57="$000",1000,1)) -> 0 | N57: ='Input|Step changes'!N21*IF('Input|Step changes'!$F21="nominal",LOOKUP($F57,Nominal_to_Real,'Input|Rate of change'!R$27:R$32),INDEX('Input|Rate of change'!$C$14:$O$22,MATCH('Input|Step changes'!$F21,'Input|Rate of change'!$C$14:$C$22,0),MATCH('Calc|Opex forecast'!$F57,'Input|Rate of change'!$C$14:$O$14,0)))*IF('Input|Step changes'!$E21="$millions",1000000,IF('Input|Step changes'!$E21="$000",1000,1))/IF($E57="$millions",1000000,IF($E57="$000",1000,1)) -> 0 | O57: ='Input|Step changes'!O21*IF('Input|Step changes'!$F21="nominal",LOOKUP($F57,Nominal_to_Real,'Input|Rate of change'!S$27:S$32),INDEX('Input|Rate of change'!$C$14:$O$22,MATCH('Input|Step changes'!$F21,'Input|Rate of change'!$C$14:$C$22,0),MATCH('Calc|Opex forecast'!$F57,'Input|Rate of change'!$C$14:$O$14,0)))*IF('Input|Step changes'!$E21="$millions",1000000,IF('Input|Step changes'!$E21="$000",1000,1))/IF($E57="$millions",1000000,IF($E57="$000",1000,1)) -> 0 | P57: ='Input|Step changes'!P21*IF('Input|Step changes'!$F21="nominal",LOOKUP($F57,Nominal_to_Real,'Input|Rate of change'!T$27:T$32),INDEX('Input|Rate of change'!$C$14:$O$22,MATCH('Input|Step changes'!$F21,'Input|Rate of change'!$C$14:$C$22,0),MATCH('Calc|Opex forecast'!$F57,'Input|Rate of change'!$C$14:$O$14,0)))*IF('Input|Step changes'!$E21="$millions",1000000,IF('Input|Step changes'!$E21="$000",1000,1))/IF($E57="$millions",1000000,IF($E57="$000",1000,1)) -> 0 | Q57: ='Input|Step changes'!Q21*IF('Input|Step changes'!$F21="nominal",LOOKUP($F57,Nominal_to_Real,'Input|Rate of change'!U$27:U$32),INDEX('Input|Rate of change'!$C$14:$O$22,MATCH('Input|Step changes'!$F21,'Input|Rate of change'!$C$14:$C$22,0),MATCH('Calc|Opex forecast'!$F57,'Input|Rate of change'!$C$14:$O$14,0)))*IF('Input|Step changes'!$E21="$millions",1000000,IF('Input|Step changes'!$E21="$000",1000,1))/IF($E57="$millions",1000000,IF($E57="$000",1000,1)) -> 0 | R57: ='Input|Step changes'!R21*IF('Input|Step changes'!$F21="nominal",LOOKUP($F57,Nominal_to_Real,'Input|Rate of change'!V$27:V$32),INDEX('Input|Rate of change'!$C$14:$O$22,MATCH('Input|Step changes'!$F21,'Input|Rate of change'!$C$14:$C$22,0),MATCH('Calc|Opex forecast'!$F57,'Input|Rate of change'!$C$14:$O$14,0)))*IF('Input|Step changes'!$E21="$millions",1000000,IF('Input|Step changes'!$E21="$000",1000,1))/IF($E57="$millions",1000000,IF($E57="$000",1000,1)) -> 0 | S57: ='Input|Step changes'!S21*IF('Input|Step changes'!$F21="nominal",LOOKUP($F57,Nominal_to_Real,'Input|Rate of change'!W$27:W$32),INDEX('Input|Rate of change'!$C$14:$O$22,MATCH('Input|Step changes'!$F21,'Input|Rate of change'!$C$14:$C$22,0),MATCH('Calc|Opex forecast'!$F57,'Input|Rate of change'!$C$14:$O$14,0)))*IF('Input|Step changes'!$E21="$millions",1000000,IF('Input|Step changes'!$E21="$000",1000,1))/IF($E57="$millions",1000000,IF($E57="$000",1000,1)) -> 0
C58: ='Input|Step changes'!C22 -> 0 | D58: Calculated | E58: $millions | F58: 2018-19 | J58: ='Input|Step changes'!J22*IF('Input|Step changes'!$F22="nominal",LOOKUP($F58,Nominal_to_Real,'Input|Rate of change'!N$27:N$32),INDEX('Input|Rate of change'!$C$14:$O$22,MATCH('Input|Step changes'!$F22,'Input|Rate of change'!$C$14:$C$22,0),MATCH('Calc|Opex forecast'!$F58,'Input|Rate of change'!$C$14:$O$14,0)))*IF('Input|Step changes'!$E22="$millions",1000000,IF('Input|Step changes'!$E22="$000",1000,1))/IF($E58="$millions",1000000,IF($E58="$000",1000,1)) -> 0 | K58: ='Input|Step changes'!K22*IF('Input|Step changes'!$F22="nominal",LOOKUP($F58,Nominal_to_Real,'Input|Rate of change'!O$27:O$32),INDEX('Input|Rate of change'!$C$14:$O$22,MATCH('Input|Step changes'!$F22,'Input|Rate of change'!$C$14:$C$22,0),MATCH('Calc|Opex forecast'!$F58,'Input|Rate of change'!$C$14:$O$14,0)))*IF('Input|Step changes'!$E22="$millions",1000000,IF('Input|Step changes'!$E22="$000",1000,1))/IF($E58="$millions",1000000,IF($E58="$000",1000,1)) -> 0 | L58: ='Input|Step changes'!L22*IF('Input|Step changes'!$F22="nominal",LOOKUP($F58,Nominal_to_Real,'Input|Rate of change'!P$27:P$32),INDEX('Input|Rate of change'!$C$14:$O$22,MATCH('Input|Step changes'!$F22,'Input|Rate of change'!$C$14:$C$22,0),MATCH('Calc|Opex forecast'!$F58,'Input|Rate of change'!$C$14:$O$14,0)))*IF('Input|Step changes'!$E22="$millions",1000000,IF('Input|Step changes'!$E22="$000",1000,1))/IF($E58="$millions",1000000,IF($E58="$000",1000,1)) -> 0 | M58: ='Input|Step changes'!M22*IF('Input|Step changes'!$F22="nominal",LOOKUP($F58,Nominal_to_Real,'Input|Rate of change'!Q$27:Q$32),INDEX('Input|Rate of change'!$C$14:$O$22,MATCH('Input|Step changes'!$F22,'Input|Rate of change'!$C$14:$C$22,0),MATCH('Calc|Opex forecast'!$F58,'Input|Rate of change'!$C$14:$O$14,0)))*IF('Input|Step changes'!$E22="$millions",1000000,IF('Input|Step changes'!$E22="$000",1000,1))/IF($E58="$millions",1000000,IF($E58="$000",1000,1)) -> 0 | N58: ='Input|Step changes'!N22*IF('Input|Step changes'!$F22="nominal",LOOKUP($F58,Nominal_to_Real,'Input|Rate of change'!R$27:R$32),INDEX('Input|Rate of change'!$C$14:$O$22,MATCH('Input|Step changes'!$F22,'Input|Rate of change'!$C$14:$C$22,0),MATCH('Calc|Opex forecast'!$F58,'Input|Rate of change'!$C$14:$O$14,0)))*IF('Input|Step changes'!$E22="$millions",1000000,IF('Input|Step changes'!$E22="$000",1000,1))/IF($E58="$millions",1000000,IF($E58="$000",1000,1)) -> 0 | O58: ='Input|Step changes'!O22*IF('Input|Step changes'!$F22="nominal",LOOKUP($F58,Nominal_to_Real,'Input|Rate of change'!S$27:S$32),INDEX('Input|Rate of change'!$C$14:$O$22,MATCH('Input|Step changes'!$F22,'Input|Rate of change'!$C$14:$C$22,0),MATCH('Calc|Opex forecast'!$F58,'Input|Rate of change'!$C$14:$O$14,0)))*IF('Input|Step changes'!$E22="$millions",1000000,IF('Input|Step changes'!$E22="$000",1000,1))/IF($E58="$millions",1000000,IF($E58="$000",1000,1)) -> 0 | P58: ='Input|Step changes'!P22*IF('Input|Step changes'!$F22="nominal",LOOKUP($F58,Nominal_to_Real,'Input|Rate of change'!T$27:T$32),INDEX('Input|Rate of change'!$C$14:$O$22,MATCH('Input|Step changes'!$F22,'Input|Rate of change'!$C$14:$C$22,0),MATCH('Calc|Opex forecast'!$F58,'Input|Rate of change'!$C$14:$O$14,0)))*IF('Input|Step changes'!$E22="$millions",1000000,IF('Input|Step changes'!$E22="$000",1000,1))/IF($E58="$millions",1000000,IF($E58="$000",1000,1)) -> 0 | Q58: ='Input|Step changes'!Q22*IF('Input|Step changes'!$F22="nominal",LOOKUP($F58,Nominal_to_Real,'Input|Rate of change'!U$27:U$32),INDEX('Input|Rate of change'!$C$14:$O$22,MATCH('Input|Step changes'!$F22,'Input|Rate of change'!$C$14:$C$22,0),MATCH('Calc|Opex forecast'!$F58,'Input|Rate of change'!$C$14:$O$14,0)))*IF('Input|Step changes'!$E22="$millions",1000000,IF('Input|Step changes'!$E22="$000",1000,1))/IF($E58="$millions",1000000,IF($E58="$000",1000,1)) -> 0 | R58: ='Input|Step changes'!R22*IF('Input|Step changes'!$F22="nominal",LOOKUP($F58,Nominal_to_Real,'Input|Rate of change'!V$27:V$32),INDEX('Input|Rate of change'!$C$14:$O$22,MATCH('Input|Step changes'!$F22,'Input|Rate of change'!$C$14:$C$22,0),MATCH('Calc|Opex forecast'!$F58,'Input|Rate of change'!$C$14:$O$14,0)))*IF('Input|Step changes'!$E22="$millions",1000000,IF('Input|Step changes'!$E22="$000",1000,1))/IF($E58="$millions",1000000,IF($E58="$000",1000,1)) -> 0 | S58: ='Input|Step changes'!S22*IF('Input|Step changes'!$F22="nominal",LOOKUP($F58,Nominal_to_Real,'Input|Rate of change'!W$27:W$32),INDEX('Input|Rate of change'!$C$14:$O$22,MATCH('Input|Step changes'!$F22,'Input|Rate of change'!$C$14:$C$22,0),MATCH('Calc|Opex forecast'!$F58,'Input|Rate of change'!$C$14:$O$14,0)))*IF('Input|Step changes'!$E22="$millions",1000000,IF('Input|Step changes'!$E22="$000",1000,1))/IF($E58="$millions",1000000,IF($E58="$000",1000,1)) -> 0
C59: ='Input|Step changes'!C23 -> 0 | D59: Calculated | E59: $millions | F59: 2018-19 | J59: ='Input|Step changes'!J23*IF('Input|Step changes'!$F23="nominal",LOOKUP($F59,Nominal_to_Real,'Input|Rate of change'!N$27:N$32),INDEX('Input|Rate of change'!$C$14:$O$22,MATCH('Input|Step changes'!$F23,'Input|Rate of change'!$C$14:$C$22,0),MATCH('Calc|Opex forecast'!$F59,'Input|Rate of change'!$C$14:$O$14,0)))*IF('Input|Step changes'!$E23="$millions",1000000,IF('Input|Step changes'!$E23="$000",1000,1))/IF($E59="$millions",1000000,IF($E59="$000",1000,1)) -> 0 | K59: ='Input|Step changes'!K23*IF('Input|Step changes'!$F23="nominal",LOOKUP($F59,Nominal_to_Real,'Input|Rate of change'!O$27:O$32),INDEX('Input|Rate of change'!$C$14:$O$22,MATCH('Input|Step changes'!$F23,'Input|Rate of change'!$C$14:$C$22,0),MATCH('Calc|Opex forecast'!$F59,'Input|Rate of change'!$C$14:$O$14,0)))*IF('Input|Step changes'!$E23="$millions",1000000,IF('Input|Step changes'!$E23="$000",1000,1))/IF($E59="$millions",1000000,IF($E59="$000",1000,1)) -> 0 | L59: ='Input|Step changes'!L23*IF('Input|Step changes'!$F23="nominal",LOOKUP($F59,Nominal_to_Real,'Input|Rate of change'!P$27:P$32),INDEX('Input|Rate of change'!$C$14:$O$22,MATCH('Input|Step changes'!$F23,'Input|Rate of change'!$C$14:$C$22,0),MATCH('Calc|Opex forecast'!$F59,'Input|Rate of change'!$C$14:$O$14,0)))*IF('Input|Step changes'!$E23="$millions",1000000,IF('Input|Step changes'!$E23="$000",1000,1))/IF($E59="$millions",1000000,IF($E59="$000",1000,1)) -> 0 | M59: ='Input|Step changes'!M23*IF('Input|Step changes'!$F23="nominal",LOOKUP($F59,Nominal_to_Real,'Input|Rate of change'!Q$27:Q$32),INDEX('Input|Rate of change'!$C$14:$O$22,MATCH('Input|Step changes'!$F23,'Input|Rate of change'!$C$14:$C$22,0),MATCH('Calc|Opex forecast'!$F59,'Input|Rate of change'!$C$14:$O$14,0)))*IF('Input|Step changes'!$E23="$millions",1000000,IF('Input|Step changes'!$E23="$000",1000,1))/IF($E59="$millions",1000000,IF($E59="$000",1000,1)) -> 0 | N59: ='Input|Step changes'!N23*IF('Input|Step changes'!$F23="nominal",LOOKUP($F59,Nominal_to_Real,'Input|Rate of change'!R$27:R$32),INDEX('Input|Rate of change'!$C$14:$O$22,MATCH('Input|Step changes'!$F23,'Input|Rate of change'!$C$14:$C$22,0),MATCH('Calc|Opex forecast'!$F59,'Input|Rate of change'!$C$14:$O$14,0)))*IF('Input|Step changes'!$E23="$millions",1000000,IF('Input|Step changes'!$E23="$000",1000,1))/IF($E59="$millions",1000000,IF($E59="$000",1000,1)) -> 0 | O59: ='Input|Step changes'!O23*IF('Input|Step changes'!$F23="nominal",LOOKUP($F59,Nominal_to_Real,'Input|Rate of change'!S$27:S$32),INDEX('Input|Rate of change'!$C$14:$O$22,MATCH('Input|Step changes'!$F23,'Input|Rate of change'!$C$14:$C$22,0),MATCH('Calc|Opex forecast'!$F59,'Input|Rate of change'!$C$14:$O$14,0)))*IF('Input|Step changes'!$E23="$millions",1000000,IF('Input|Step changes'!$E23="$000",1000,1))/IF($E59="$millions",1000000,IF($E59="$000",1000,1)) -> 0 | P59: ='Input|Step changes'!P23*IF('Input|Step changes'!$F23="nominal",LOOKUP($F59,Nominal_to_Real,'Input|Rate of change'!T$27:T$32),INDEX('Input|Rate of change'!$C$14:$O$22,MATCH('Input|Step changes'!$F23,'Input|Rate of change'!$C$14:$C$22,0),MATCH('Calc|Opex forecast'!$F59,'Input|Rate of change'!$C$14:$O$14,0)))*IF('Input|Step changes'!$E23="$millions",1000000,IF('Input|Step changes'!$E23="$000",1000,1))/IF($E59="$millions",1000000,IF($E59="$000",1000,1)) -> 0 | Q59: ='Input|Step changes'!Q23*IF('Input|Step changes'!$F23="nominal",LOOKUP($F59,Nominal_to_Real,'Input|Rate of change'!U$27:U$32),INDEX('Input|Rate of change'!$C$14:$O$22,MATCH('Input|Step changes'!$F23,'Input|Rate of change'!$C$14:$C$22,0),MATCH('Calc|Opex forecast'!$F59,'Input|Rate of change'!$C$14:$O$14,0)))*IF('Input|Step changes'!$E23="$millions",1000000,IF('Input|Step changes'!$E23="$000",1000,1))/IF($E59="$millions",1000000,IF($E59="$000",1000,1)) -> 0 | R59: ='Input|Step changes'!R23*IF('Input|Step changes'!$F23="nominal",LOOKUP($F59,Nominal_to_Real,'Input|Rate of change'!V$27:V$32),INDEX('Input|Rate of change'!$C$14:$O$22,MATCH('Input|Step changes'!$F23,'Input|Rate of change'!$C$14:$C$22,0),MATCH('Calc|Opex forecast'!$F59,'Input|Rate of change'!$C$14:$O$14,0)))*IF('Input|Step changes'!$E23="$millions",1000000,IF('Input|Step changes'!$E23="$000",1000,1))/IF($E59="$millions",1000000,IF($E59="$000",1000,1)) -> 0 | S59: ='Input|Step changes'!S23*IF('Input|Step changes'!$F23="nominal",LOOKUP($F59,Nominal_to_Real,'Input|Rate of change'!W$27:W$32),INDEX('Input|Rate of change'!$C$14:$O$22,MATCH('Input|Step changes'!$F23,'Input|Rate of change'!$C$14:$C$22,0),MATCH('Calc|Opex forecast'!$F59,'Input|Rate of change'!$C$14:$O$14,0)))*IF('Input|Step changes'!$E23="$millions",1000000,IF('Input|Step changes'!$E23="$000",1000,1))/IF($E59="$millions",1000000,IF($E59="$000",1000,1)) -> 0
C61: Total step changes | D61: Calculated | E61: =$E$8 -> $millions | F61: =$F$8 -> 2018-19 | J61: =SUM(J48:J60) -> 0 | K61: =SUM(K48:K60) -> 0 | L61: 0 | M61: 0 | N61: 0 | O61: =SUM(O48:O60) -> 0 | P61: 0 | Q61: 0 | R61: 0 | S61: 0
B63: Calc | Total forecast operating expenditure
J65: =J4 -> 2014-15 | K65: =K4 -> 2015-16 | L65: =L4 -> 2016-17 | M65: =IF(RIGHT(M$4,2)>=RIGHT('Input|General'!$G$9,2),IF(RIGHT(M$4,2)<=RIGHT('Input|General'!$G$12,2),M$4,""),"") -> 2017-18 | N65: =IF(RIGHT(N$4,2)>=RIGHT('Input|General'!$G$9,2),IF(RIGHT(N$4,2)<=RIGHT('Input|General'!$G$12,2),N$4,""),"") -> 2018-19 | O65: =IF(RIGHT(O$4,2)>=RIGHT('Input|General'!$G$9,2),IF(RIGHT(O$4,2)<=RIGHT('Input|General'!$G$12,2),O$4,""),"") -> 2019-20 | P65: =IF(RIGHT(P$4,2)>=RIGHT('Input|General'!$G$9,2),IF(RIGHT(P$4,2)<=RIGHT('Input|General'!$G$12,2),P$4,""),"") -> 2020-21 | Q65: =IF(RIGHT(Q$4,2)>=RIGHT('Input|General'!$G$9,2),IF(RIGHT(Q$4,2)<=RIGHT('Input|General'!$G$12,2),Q$4,""),"") -> 2021-22 | R65: =IF(RIGHT(R$4,2)>=RIGHT('Input|General'!$G$9,2),IF(RIGHT(R$4,2)<=RIGHT('Input|General'!$G$12,2),R$4,""),"") -> 2022-23 | S65: =IF(RIGHT(S$4,2)>=RIGHT('Input|General'!$G$9,2),IF(RIGHT(S$4,2)<=RIGHT('Input|General'!$G$12,2),S$4,""),"") -> 2023-24
C67: Total forecast opex, excluding debt raising costs | D67: Calculated | E67: =$E$8 -> $millions | F67: =$F$8 -> 2018-19 | J67: =J13 -> 0 | K67: =K13 -> 0 | L67: =L13 -> 0 | O67: =IF(RIGHT(O$4,2)>=RIGHT('Input|General'!$G$11,2),IF(RIGHT(O$4,2)<='Input|General'!$G$12,IF(ISBLANK(O65),"",PRODUCT(1+$J42:O42)*SUM($J29:$S29)+O61),""),"") -> 278.8412431 | P67: =PRODUCT(1+$J42:P42)*SUM($J29:$S29)+P61 -> 286.7106099 | Q67: =PRODUCT(1+$I42:Q42)*SUM($J29:$S29)+Q61 -> 296.7045143 | R67: =PRODUCT(1+$H42:R42)*SUM($J29:$S29)+R61 -> 306.7866561 | S67: =PRODUCT(1+$G42:S42)*SUM($J29:$S29)+S61 -> 316.4537815
C68: Total forecast opex, including debt raising costs | D68: Calculated | E68: =$E$8 -> $millions | F68: =$F$8 -> 2018-19 | O68: =O67+'Input|Step changes'!O29 -> 282.3577564 | P68: =P67+'Input|Step changes'!P29 -> 290.3387925 | Q68: =Q67+'Input|Step changes'!Q29 -> 300.4217319 | R68: =R67+'Input|Step changes'!R29 -> 310.5833106 | S68: =S67+'Input|Step changes'!S29 -> 320.3188325
B70: End

Sheet Output|Models
B1: =Index!$B$1 -> AER opex model | J1: Back to Index | L1: Key: | M1: Input | N1: External Link | O1: Internal Link | R1: Worksheet check: | S1: =IF(COUNTA($W$14:$W$471)=COUNTIF($W$14:$W$471,"OK"),"OK","Check") -> OK | U1: Overall Check: | V1: ='Check|List'!$S$1 -> Ok
B2: =Index!$C$13 -> Output | Models
D4: Source | E4: Unit | F4: Basis | J4: ='Input|General'!$G$8 -> 2014-15 | K4: =IF(OFFSET('Lookup|Tables'!$G$28:$G$43,MATCH('Input|General'!$G$8,'Lookup|Tables'!$G$28:$G$42,0)+1,0,1,1)<='Input|General'!$G$12,OFFSET('Lookup|Tables'!$G$28:$G$43,1,0,1,1),"") -> 2010-11 | L4: =IF(OFFSET('Lookup|Tables'!$G$28:$G$43,MATCH('Input|General'!$G$8,'Lookup|Tables'!$G$28:$G$42,0)+1,0,1,1)<='Input|General'!$G$12,OFFSET('Lookup|Tables'!$G$28:$G$43,MATCH('Input|General'!$G$8,'Lookup|Tables'!$G$28:$G$42,0)+1,0,1,1),"") -> 2016-17 | M4: =IF(OFFSET('Lookup|Tables'!$G$28:$G$43,MATCH('Input|General'!$G$8,'Lookup|Tables'!$G$28:$G$42,0)+2,0,1,1)<='Input|General'!$G$12,OFFSET('Lookup|Tables'!$G$28:$G$43,MATCH('Input|General'!$G$8,'Lookup|Tables'!$G$28:$G$42,0)+2,0,1,1),"") -> 2017-18 | N4: =IF(OFFSET('Lookup|Tables'!$G$28:$G$43,MATCH('Input|General'!$G$8,'Lookup|Tables'!$G$28:$G$42,0)+3,0,1,1)<='Input|General'!$G$12,OFFSET('Lookup|Tables'!$G$28:$G$43,MATCH('Input|General'!$G$8,'Lookup|Tables'!$G$28:$G$42,0)+3,0,1,1),"") -> 2018-19 | O4: =IF(OFFSET('Lookup|Tables'!$G$28:$G$43,MATCH('Input|General'!$G$8,'Lookup|Tables'!$G$28:$G$42,0)+4,0,1,1)<='Input|General'!$G$12,OFFSET('Lookup|Tables'!$G$28:$G$43,MATCH('Input|General'!$G$8,'Lookup|Tables'!$G$28:$G$42,0)+4,0,1,1),"") -> 2019-20 | P4: =IF(OFFSET('Lookup|Tables'!$G$28:$G$43,MATCH('Input|General'!$G$8,'Lookup|Tables'!$G$28:$G$42,0)+5,0,1,1)<='Input|General'!$G$12,OFFSET('Lookup|Tables'!$G$28:$G$43,MATCH('Input|General'!$G$8,'Lookup|Tables'!$G$28:$G$42,0)+5,0,1,1),"") -> 2020-21 | Q4: =IF(OFFSET('Lookup|Tables'!$G$28:$G$43,MATCH('Input|General'!$G$8,'Lookup|Tables'!$G$28:$G$42,0)+6,0,1,1)<='Input|General'!$G$12,OFFSET('Lookup|Tables'!$G$28:$G$43,MATCH('Input|General'!$G$8,'Lookup|Tables'!$G$28:$G$42,0)+6,0,1,1),"") -> 2021-22 | R4: =IF(OFFSET('Lookup|Tables'!$G$28:$G$43,MATCH('Input|General'!$G$8,'Lookup|Tables'!$G$28:$G$42,0)+7,0,1,1)<='Input|General'!$G$12,OFFSET('Lookup|Tables'!$G$28:$G$43,MATCH('Input|General'!$G$8,'Lookup|Tables'!$G$28:$G$42,0)+7,0,1,1),"") -> 2022-23 | S4: =IF(OFFSET('Lookup|Tables'!$G$28:$G$43,MATCH('Input|General'!$G$8,'Lookup|Tables'!$G$28:$G$42,0)+8,0,1,1)<='Input|General'!$G$12,OFFSET('Lookup|Tables'!$G$28:$G$43,MATCH('Input|General'!$G$8,'Lookup|Tables'!$G$28:$G$42,0)+8,0,1,1),"") -> 2023-24
B8: Inputs for Post Tax Revenue Model | E8: $millions | F8: 2018-19 | J8: Note. The dollar base should be consistent with the post tax revenue model
C11: Operating expenditure | D11: Source | E11: Unit | F11: Basis | J11: =IF(RIGHT(J$4,2)>=RIGHT('Input|General'!$G$11,2),IF(RIGHT(J$4,2)<=RIGHT('Input|General'!$G$12,2),J$4,""),"") ->  | K11: =IF(RIGHT(K$4,2)>=RIGHT('Input|General'!$G$11,2),IF(RIGHT(K$4,2)<=RIGHT('Input|General'!$G$12,2),K$4,""),"") ->  | L11: =IF(RIGHT(L$4,2)>=RIGHT('Input|General'!$G$11,2),IF(RIGHT(L$4,2)<=RIGHT('Input|General'!$G$12,2),L$4,""),"") ->  | M11: =IF(RIGHT(M$4,2)>=RIGHT('Input|General'!$G$11,2),IF(RIGHT(M$4,2)<=RIGHT('Input|General'!$G$12,2),M$4,""),"") ->  | N11: =IF(RIGHT(N$4,2)>=RIGHT('Input|General'!$G$11,2),IF(RIGHT(N$4,2)<=RIGHT('Input|General'!$G$12,2),N$4,""),"") ->  | O11: =IF(RIGHT(O$4,2)>=RIGHT('Input|General'!$G$11,2),IF(RIGHT(O$4,2)<=RIGHT('Input|General'!$G$12,2),O$4,""),"") -> 2019-20 | P11: =IF(RIGHT(P$4,2)>=RIGHT('Input|General'!$G$11,2),IF(RIGHT(P$4,2)<=RIGHT('Input|General'!$G$12,2),P$4,""),"") -> 2020-21 | Q11: =IF(RIGHT(Q$4,2)>=RIGHT('Input|General'!$G$11,2),IF(RIGHT(Q$4,2)<=RIGHT('Input|General'!$G$12,2),Q$4,""),"") -> 2021-22 | R11: =IF(RIGHT(R$4,2)>=RIGHT('Input|General'!$G$11,2),IF(RIGHT(R$4,2)<=RIGHT('Input|General'!$G$12,2),R$4,""),"") -> 2022-23 | S11: =IF(RIGHT(S$4,2)>=RIGHT('Input|General'!$G$11,2),IF(RIGHT(S$4,2)<=RIGHT('Input|General'!$G$12,2),S$4,""),"") -> 2023-24 | U11: Notes
C12: Forecast operating expenditure (excl. DRC) | D12: Calc | Opex forecast | E12: =$E$8 -> $millions | F12: =$F$8 -> 2018-19 | J12: =IF(J11="",0,'Calc|Opex forecast'!J67*IF('Calc|Opex forecast'!$F$67="nominal",LOOKUP($F12,Nominal_to_Real,'Input|Rate of change'!P$27:P$32),INDEX('Input|Rate of change'!$C$14:$O$22,MATCH('Calc|Opex forecast'!$F$67,'Input|Rate of change'!$C$14:$C$22,0),MATCH('Output|Models'!$F12,'Input|Rate of change'!$C$14:$O$14,0)))*IF('Calc|Opex forecast'!$E$67="$millions",1000000,IF('Output|Models'!B47="$000",1000,1))/IF($E12="$millions",1000000,IF($E12="$000",1000,1))) -> 0 | K12: =IF(K11="",0,'Calc|Opex forecast'!K67*IF('Calc|Opex forecast'!$F$67="nominal",LOOKUP($F12,Nominal_to_Real,'Input|Rate of change'!Q$27:Q$32),INDEX('Input|Rate of change'!$C$14:$O$22,MATCH('Calc|Opex forecast'!$F$67,'Input|Rate of change'!$C$14:$C$22,0),MATCH('Output|Models'!$F12,'Input|Rate of change'!$C$14:$O$14,0)))*IF('Calc|Opex forecast'!$E$67="$millions",1000000,IF('Output|Models'!C47="$000",1000,1))/IF($E12="$millions",1000000,IF($E12="$000",1000,1))) -> 0 | L12: =IF(L11="",0,'Calc|Opex forecast'!L67*IF('Calc|Opex forecast'!$F$67="nominal",LOOKUP($F12,Nominal_to_Real,'Input|Rate of change'!R$27:R$32),INDEX('Input|Rate of change'!$C$14:$O$22,MATCH('Calc|Opex forecast'!$F$67,'Input|Rate of change'!$C$14:$C$22,0),MATCH('Output|Models'!$F12,'Input|Rate of change'!$C$14:$O$14,0)))*IF('Calc|Opex forecast'!$E$67="$millions",1000000,IF('Output|Models'!D47="$000",1000,1))/IF($E12="$millions",1000000,IF($E12="$000",1000,1))) -> 0 | M12: =IF(M11="",0,'Calc|Opex forecast'!M67*IF('Calc|Opex forecast'!$F$67="nominal",LOOKUP($F12,Nominal_to_Real,'Input|Rate of change'!S$27:S$32),INDEX('Input|Rate of change'!$C$14:$O$22,MATCH('Calc|Opex forecast'!$F$67,'Input|Rate of change'!$C$14:$C$22,0),MATCH('Output|Models'!$F12,'Input|Rate of change'!$C$14:$O$14,0)))*IF('Calc|Opex forecast'!$E$67="$millions",1000000,IF('Output|Models'!E47="$000",1000,1))/IF($E12="$millions",1000000,IF($E12="$000",1000,1))) -> 0 | N12: =IF(N11="",0,'Calc|Opex forecast'!N67*IF('Calc|Opex forecast'!$F$67="nominal",LOOKUP($F12,Nominal_to_Real,'Input|Rate of change'!T$27:T$32),INDEX('Input|Rate of change'!$C$14:$O$22,MATCH('Calc|Opex forecast'!$F$67,'Input|Rate of change'!$C$14:$C$22,0),MATCH('Output|Models'!$F12,'Input|Rate of change'!$C$14:$O$14,0)))*IF('Calc|Opex forecast'!$E$67="$millions",1000000,IF('Output|Models'!F47="$000",1000,1))/IF($E12="$millions",1000000,IF($E12="$000",1000,1))) -> 0 | O12: =IF(O11="",0,'Calc|Opex forecast'!O67*IF('Calc|Opex forecast'!$F$67="nominal",LOOKUP($F12,Nominal_to_Real,'Input|Rate of change'!U$27:U$32),INDEX('Input|Rate of change'!$C$14:$O$22,MATCH('Calc|Opex forecast'!$F$67,'Input|Rate of change'!$C$14:$C$22,0),MATCH('Output|Models'!$F12,'Input|Rate of change'!$C$14:$O$14,0)))*IF('Calc|Opex forecast'!$E$67="$millions",1000000,IF('Output|Models'!G47="$000",1000,1))/IF($E12="$millions",1000000,IF($E12="$000",1000,1))) -> 278.8412431 | P12: =IF(P11="",0,'Calc|Opex forecast'!P67*IF('Calc|Opex forecast'!$F$67="nominal",LOOKUP($F12,Nominal_to_Real,'Input|Rate of change'!V$27:V$32),INDEX('Input|Rate of change'!$C$14:$O$22,MATCH('Calc|Opex forecast'!$F$67,'Input|Rate of change'!$C$14:$C$22,0),MATCH('Output|Models'!$F12,'Input|Rate of change'!$C$14:$O$14,0)))*IF('Calc|Opex forecast'!$E$67="$millions",1000000,IF('Output|Models'!H47="$000",1000,1))/IF($E12="$millions",1000000,IF($E12="$000",1000,1))) -> 286.7106099 | Q12: =IF(Q11="",0,'Calc|Opex forecast'!Q67*IF('Calc|Opex forecast'!$F$67="nominal",LOOKUP($F12,Nominal_to_Real,'Input|Rate of change'!W$27:W$32),INDEX('Input|Rate of change'!$C$14:$O$22,MATCH('Calc|Opex forecast'!$F$67,'Input|Rate of change'!$C$14:$C$22,0),MATCH('Output|Models'!$F12,'Input|Rate of change'!$C$14:$O$14,0)))*IF('Calc|Opex forecast'!$E$67="$millions",1000000,IF('Output|Models'!I47="$000",1000,1))/IF($E12="$millions",1000000,IF($E12="$000",1000,1))) -> 296.7045143 | R12: =IF(R11="",0,'Calc|Opex forecast'!R67*IF('Calc|Opex forecast'!$F$67="nominal",LOOKUP($F12,Nominal_to_Real,'Input|Rate of change'!X$27:X$32),INDEX('Input|Rate of change'!$C$14:$O$22,MATCH('Calc|Opex forecast'!$F$67,'Input|Rate of change'!$C$14:$C$22,0),MATCH('Output|Models'!$F12,'Input|Rate of change'!$C$14:$O$14,0)))*IF('Calc|Opex forecast'!$E$67="$millions",1000000,IF('Output|Models'!J47="$000",1000,1))/IF($E12="$millions",1000000,IF($E12="$000",1000,1))) -> 306.7866561 | S12: =IF(S11="",0,'Calc|Opex forecast'!S67*IF('Calc|Opex forecast'!$F$67="nominal",LOOKUP($F12,Nominal_to_Real,'Input|Rate of change'!Y$27:Y$32),INDEX('Input|Rate of change'!$C$14:$O$22,MATCH('Calc|Opex forecast'!$F$67,'Input|Rate of change'!$C$14:$C$22,0),MATCH('Output|Models'!$F12,'Input|Rate of change'!$C$14:$O$14,0)))*IF('Calc|Opex forecast'!$E$67="$millions",1000000,IF('Output|Models'!K47="$000",1000,1))/IF($E12="$millions",1000000,IF($E12="$000",1000,1))) -> 316.4537815
S13: =SUM(O12:S12) -> 1485.496805
B15: End

Sheet Lookup|Tables
B1: =Index!$B$1 -> AER opex model | J1: Back to Index | L1: Key: | M1: Input | N1: External Link | O1: Internal Link | U1: Overall Check: | V1: ='Check|List'!$S$1 -> Ok
B2: =Index!$C$14 -> Lookup | Tables
B7: Unit Denominations
C9: =B7 -> Unit Denominations | D9: Source | G9: Ref
C10: Dollars | D10: AER | G10: $dollars
C11: Thousands | D11: AER | G11: $000
C12: Millions | D12: AER | G12: $millions
C14: Percent | D14: AER | G14: Per cent
C15: Unit | D15: AER | G15: unit
C16: Number | D16: AER | G16: number
C17: Factor | D17: AER | G17: factor
C19: Actual | D19: AER | G19: Actual
C20: Estimate | D20: AER | G20: Estimate
B22: Years
C24: =B22 -> Years | D24: Source | G24: Ref
C25: nominal | D25: AER | G25: nominal
C26: 2007-08 | D26: AER | G26: 2007-08
C27: 2008-09 | D27: AER | G27: 2008-09
C28: 2009-10 | D28: AER | G28: 2009-10
C29: 2010-11 | D29: AER | G29: 2010-11
C30: 2011-12 | D30: AER | G30: 2011-12
C31: 2012-13 | D31: AER | G31: 2012-13
C32: 2013-14 | D32: AER | G32: 2013-14
C33: 2014-15 | D33: AER | G33: 2014-15
C34: 2015-16 | D34: AER | G34: 2015-16
C35: 2016-17 | D35: AER | G35: 2016-17
C36: 2017-18 | D36: AER | G36: 2017-18
C37: 2018-19 | D37: AER | G37: 2018-19
C38: 2019-20 | D38: AER | G38: 2019-20
C39: 2020-21 | D39: AER | G39: 2020-21
C40: 2021-22 | D40: AER | G40: 2021-22
C41: 2022-23 | D41: AER | G41: 2022-23
C42: 2023-24 | D42: AER | G42: 2023-24
B44: End

Sheet Check|List
B1: =Index!$B$1 -> AER opex model | J1: Back to Index | L1: Key: | M1: Input | N1: External Link | O1: Internal Link | R1: Overall Check: | S1: =IF(COUNTIF(G10:G15,"Check")=0,"Ok","Check") -> Ok
B2: =Index!$C$15 -> Check | List
B7: Check List
C9: Sheet | D9: Source | E9: Unit | G9: Status
C10: =Index!C7 -> Input | General | D10: =C10 -> Input | General | E10: Ok/Check | G10: ='Input|General'!S1 -> OK
C11: =Index!C9 -> Input | Reported opex | D11: Input | Reported opex | E11: Ok/Check | G11: ='Input|Reported opex'!S1 -> OK
C12: =Index!C10 -> Input | Rate of change | D12: Input | Rate of change | E12: Ok/Check | G12: ='Input|Rate of change'!T1 -> Ok
C13: =Index!C11 -> Input | Step changes | D13: Input | Step changes | E13: Ok/Check | G13: ='Input|Step changes'!S1 -> OK
C14: =Index!C12 -> Calc | Opex Forecast | D14: Calc | Opex Forecast | E14: Ok/Check | G14: ='Calc|Opex forecast'!S1 -> n/a
C15: =Index!C13 -> Output | Models | D15: Output | Models | E15: Ok/Check | G15: ='Output|Models'!S1 -> OK
B17: End
